Workbook

Sheet Start
B2: Start programmet Bygningstermografering:
B7: Anvendelse af værktøj
B8: Værktøjet kan anvendes til at analysere resultater fra bygningstermografering af kuldebroer og utætheder.
B10: Ved analyse af kuldebroer kan værktøjet bestemme:
B11: =" - Den korrigerede overfladetemperatur, så den matcher et teoretisk grundlag" -> - Den korrigerede overfladetemperatur, så den matcher et teoretisk grundlag
B12: =" - Overfladetemperaturen og den korrigere overfladetemperatur ved dampspærren" -> - Overfladetemperaturen og den korrigere overfladetemperatur ved dampspærren
B13: =" - Det årlige ekstra varmetab gennem kuldebroer i konstruktionen" -> - Det årlige ekstra varmetab gennem kuldebroer i konstruktionen
B14: =" - De årlige ekstraudgifter til varme forårsaget af kuldebroer i konstruktionen" -> - De årlige ekstraudgifter til varme forårsaget af kuldebroer i konstruktionen
B15: =" - De kritiske overfladetemperaturer ift. skimmelvækst" -> - De kritiske overfladetemperaturer ift. skimmelvækst
B17: Ved analyse af utætheder kan værktøjet:
B18: =" - Sammenligne det målte luftskifte, ved trykprøvning, gennem utætheder i konstruktionen med kravene fra Bygningsreglementet" -> - Sammenligne det målte luftskifte, ved trykprøvning, gennem utætheder i konstruktionen med kravene fra Bygningsreglementet
B19: =" - Bestemme det årlige varmetab gennem utætheder i bygningen" -> - Bestemme det årlige varmetab gennem utætheder i bygningen
B20: =" - Bestemme de årlige omkostninger til varme pga. utætheder i bygningen" -> - Bestemme de årlige omkostninger til varme pga. utætheder i bygningen
B22: Værktøjet beskrives nærmere i rapporten Vejledning i bygningstermografi, som kan downloades her:
B23: www.termografivejledning.dk/
B25: Værktøjer er udviklet i forbindelse med vejledningens 1. udgave fra 2014 og er udviklet til danske forhold.
B27: Anvendelse af resultater fra programmet er på eget ansvar.
A49: x

Sheet In- og output
B2: Indtastet data | G2: Kritisk relativ luftfugtighed | K2: Kritisk relativ materialefugtighed | O2: Kritisk overfladetemperatur, anvendt | T2: Kritisk overfladetemperatur, lav RF | Y2: Kritisk overfladetemperatur, middel RF | AD2: Kritisk overfladetemperatur, Høj RF | AI2: Dropdowns | AU2: Indetemperatur | AY2: Relativ luftfugtighed | BB2: Indvendig overgangsisolans, Rsi | BE2: Krav, utæthed | BP2: Lufttemperatur (TRY) | BQ2: Rfude (TRY) | BR2: Fugtbelastningsklassegrænser ved 20 °C
B3: Målt indetemperatur | C3: Ti | E3: °C | G3: Lagersvamp | H3: Lagersvamp kræver ikke så høj fugtighed og vokser typisk på organiske materialer - det er den svampetype som giver mugpletter på brød og andre madvarer. Arterne hedder Aspergillus versicolor og Penicillium chrysogenum og kræver en relativ luftfugtighed på 75-80 procent. | I3: 75 | K3: Beton | L3: =$G$5 -> Vandskadesvamp | M3: 90 | O3: T | P3: pw | Q3: x | R3: T | T3: T | U3: pw | V3: x | W3: T | Y3: T | Z3: pw | AA3: x | AB3: T | AD3: T | AE3: pw | AF3: x | AG3: T | AI3: Svampetype | AJ3: Overfladetyper | AK3: Bygningstype | AL3: Indeklimaklasse | AM3: Krav | AN3: Afvigelsestype | AO3: Varmestrømmens retning | AP3: Beregningstype | AQ3: Beregningstype | AR3: Bygningstype, RF | AS3: Måned | AU3: Bygningstype og indeklimaklasse | AV3: Min temp | AW3: Maks temp | AY3: Måned og bygningstype | AZ3: RF | BB3: Varmestrømmens retning | BC3: Rsi | BE3: Klasse | BF3: Luftskifte | BP3: °C | BQ3: % | BR3: kl. 1-2 | BS3: kl. 2-3 | BT3: kl. 3-4 | BU3: kl. 4-5 | BW3: Fugbelastningsklasse 1: Tørre lagerhaller uden tilskuer, industribygninger uden fugtproduktion
B4: Målt udetemperatur | C4: Tu | E4: °C | G4: Phylloplansvamp | H4: Phylloplansvampe kræver middel luftfugtighed og vokser typisk på organiske materialer, hvor temperatur og luftfugtighed svinger - i naturen sidder de typisk på blade (phyllos betyder blad). Arterne hedder Alternaria og Cladosporium og kræver en relativ luftfugtighed på 80-90 procent. | I4: 80 | K4: Mineraluld | L4: =$G$5 -> Vandskadesvamp | M4: 90 | O4: [°C] | P4: [Pa] | Q4: [kg/kg] | R4: [°C] | T4: [°C] | U4: [Pa] | V4: [kg/kg] | W4: [°C] | Y4: [°C] | Z4: [Pa] | AA4: [kg/kg] | AB4: [°C] | AD4: [°C] | AE4: [Pa] | AF4: [kg/kg] | AG4: [°C] | AI4: =G3 -> Lagersvamp | AJ4: =K3 -> Beton | AK4: Bolig | AL4: I | AM4: BR 2010-krav | AN4: Kuldebro | AO4: Opad | AP4: Korrektion af overfladetemperatur | AQ4: Overfladetype | AR4: Bolig | AS4: Januar | AU4: =$AK$4&"_"&AL4 -> Bolig_I | AV4: 21 | AW4: 25 | AY4: Januar_Bolig | AZ4: 40 | BB4: =AO4 -> Opad | BC4: 0.1 | BE4: =AM4 -> BR 2010-krav | BF4: 1.5 | BG4: 0.5 | BO4: Januar | BP4: -0.6 | BQ4: 94 | BR4: 35 | BS4: 46 | BT4: 58 | BU4: 69 | BW4: Fugbelastningsklasse 2: Boliger med lav beboelsestæthed, kontorer, forretninger
B5: Målt indvendig overfladetemperaturdifferens | C5: DTi | E5: °C | G5: Vandskadesvamp | H5: Vandskadesvampe kræver meget høj luftfugtighed, men kan til gengæld både vokse på organiske og uorganiske materialer. Arterne hedder Stachybotrys, Chaetomium og Trichoderma og kræver en relative luftfugtighed på over 90 procent. | I5: 90 | K5: Ekspanderet polystyren | L5: Vandskadesvamp | M5: 90 | O5: 0 | P5: =EXP(77.345+0.0057*(O5+273)-7235/(O5+273))/(O5+273)^8.2 -> 602.8086267 | Q5: =($D$20%*0.62198*P5/($D$13-P5))*1000 -> 0 | R5: =O5 -> 0 | T5: 0 | U5: =EXP(77.345+0.0057*(T5+273)-7235/(T5+273))/(T5+273)^8.2 -> 602.8086267 | V5: =($I$3%*0.62198*U5/($D$13-U5))*1000 -> 2.791849327 | W5: =T5 -> 0 | Y5: 0 | Z5: =EXP(77.345+0.0057*(Y5+273)-7235/(Y5+273))/(Y5+273)^8.2 -> 602.8086267 | AA5: =($I$4%*0.62198*Z5/($D$13-Z5))*1000 -> 2.977972616 | AB5: =Y5 -> 0 | AD5: 0 | AE5: =EXP(77.345+0.0057*(AD5+273)-7235/(AD5+273))/(AD5+273)^8.2 -> 602.8086267 | AF5: =($I$5%*0.62198*AE5/($D$13-AE5))*1000 -> 3.350219193 | AG5: =AD5 -> 0 | AI5: =G4 -> Phylloplansvamp | AJ5: =K4 -> Mineraluld | AK5: Kontor | AL5: II | AM5: BR 2015-krav | AN5: Utæthed | AO5: Nedad | AP5: Risikoanalyse ift. skimmeldannelse | AQ5: Svampetype | AR5: Kontor | AS5: Februar | AU5: =$AK$4&"_"&AL5 -> Bolig_II | AV5: 20 | AW5: 25 | AY5: Februar_Bolig | AZ5: 40 | BB5: =AO5 -> Nedad | BC5: 0.17 | BE5: =AM5 -> BR 2015-krav | BF5: 1 | BG5: 0.3 | BO5: Februar | BP5: -1.1 | BQ5: 91 | BR5: 35 | BS5: 46 | BT5: 58 | BU5: 69 | BW5: Fugbelastningsklasse 3: Boliger med høj beboelsestæthed, idrætshaller med mange tilskuer
B6: Målt udvendig overfladetemperaturdifferens | C6: DTu | E6: °C | K6: Karton på gipskartonplade | L6: =$G$4 -> Phylloplansvamp | M6: 80 | O6: 0.1 | P6: =EXP(77.345+0.0057*(O6+273)-7235/(O6+273))/(O6+273)^8.2 -> 607.2075989 | Q6: 0 | R6: =O6 -> 0.1 | T6: 0.1 | U6: =EXP(77.345+0.0057*(T6+273)-7235/(T6+273))/(T6+273)^8.2 -> 607.2075989 | V6: =($I$3%*0.62198*U6/($D$13-U6))*1000 -> 2.812345565 | W6: =T6 -> 0.1 | Y6: 0.1 | Z6: =EXP(77.345+0.0057*(Y6+273)-7235/(Y6+273))/(Y6+273)^8.2 -> 607.2075989 | AA6: =($I$4%*0.62198*Z6/($D$13-Z6))*1000 -> 2.999835269 | AB6: =Y6 -> 0.1 | AD6: 0.1 | AE6: =EXP(77.345+0.0057*(AD6+273)-7235/(AD6+273))/(AD6+273)^8.2 -> 607.2075989 | AF6: =($I$5%*0.62198*AE6/($D$13-AE6))*1000 -> 3.374814678 | AG6: =AD6 -> 0.1 | AI6: =G5 -> Vandskadesvamp | AJ6: Ekspanderet polystyren | AK6: Børnehave | AL6: III | AM6: BR 2020-krav | AO6: Vandret | AS6: Marts | AU6: =$AK$4&"_"&AL6 -> Bolig_III | AV6: 18 | AW6: 25 | AY6: Marts_Bolig | AZ6: 40 | BB6: Vandret | BC6: 0.13 | BE6: BR 2020-krav | BF6: 0.5 | BG6: 0.15 | BO6: Marts | BP6: 2.6 | BQ6: 91 | BR6: 39 | BS6: 49 | BT6: 58 | BU6: 69 | BW6: Fugbelastningsklasse 4: Storkøkkener, kantiner, bade- og omklæsningsrum
B7: Indetemperatur, korrigeret | C7: Ti,kor | E7: °C | G7: Kilde | K7: Forurenede materialer (fx med jord eller støv) | L7: =RFM_1 -> Lagersvamp | M7: 75 | O7: 0.2 | P7: 611.6349998 | Q7: 0 | R7: 0.2 | T7: 0.2 | U7: 611.6349998 | V7: 2.832976069 | W7: 0.2 | Y7: 0.2 | Z7: 611.6349998 | AA7: 3.02184114 | AB7: 0.2 | AD7: 0.2 | AE7: 611.6349998 | AF7: 3.399571283 | AG7: 0.2 | AJ7: Karton på gipskartonplade | AK7: Butik | AS7: April | AU7: =$AK$5&"_"&AL4 -> Kontor_I | AV7: 21 | AW7: 23 | AY7: April_Bolig | AZ7: 45 | BO7: April | BP7: 6.6 | BQ7: 82 | BR7: 45 | BS7: 53 | BT7: 58 | BU7: 69 | BW7: Fugbelastningsklasse 5: Specielle bygninger, fx vaskerier, bryggerier og svømmehaller
B8: Udetemperatur, korrigeret | C8: Tu,kor | E8: °C | G8: http://www.bolius.dk/hvad-er-skimmelsvamp-17030/ | O8: 0.3 | P8: 616.0909876 | Q8: 0 | R8: 0.3 | T8: 0.3 | U8: 616.0909876 | V8: 2.853741612 | W8: 0.3 | Y8: 0.3 | Z8: 616.0909876 | AA8: 3.043991053 | AB8: 0.3 | AD8: 0.3 | AE8: 616.0909876 | AF8: 3.424489935 | AG8: 0.3 | AJ8: Forurenede materialer (fx med jord eller støv) | AS8: Maj | AU8: =$AK$5&"_"&AL5 -> Kontor_II | AV8: 20 | AW8: 24 | AY8: Maj_Bolig | AZ8: 50 | BO8: Maj | BP8: 10.6 | BQ8: 78 | BR8: 50 | BS8: 56 | BT8: 60 | BU8: 69
B9: Målt indvendig overfladetemperatur | C9: Toi | E9: °C | K9: Kilde | O9: 0.4 | P9: 620.5757214 | Q9: 0 | R9: 0.4 | T9: 0.4 | U9: 620.5757214 | V9: 2.874642971 | W9: 0.4 | Y9: 0.4 | Z9: 620.5757214 | AA9: 3.066285836 | AB9: 0.4 | AD9: 0.4 | AE9: 620.5757214 | AF9: 3.449571565 | AG9: 0.4 | AS9: Juni | AU9: =$AK$5&"_"&AL6 -> Kontor_III | AV9: 19 | AW9: 25 | AY9: Juni_Bolig | AZ9: 55 | BO9: Juni | BP9: 15.7 | BQ9: 67 | BR9: 55 | BS9: 59 | BT9: 64 | BU9: 69
B10: Målt udvendig overfladetemperatur | C10: Tou | E10: °C | K10: Sbi 224, tabel 9 | O10: 0.5 | P10: 625.0893607 | Q10: 0 | R10: 0.5 | T10: 0.5 | U10: 625.0893607 | V10: 2.895680925 | W10: 0.5 | Y10: 0.5 | Z10: 625.0893607 | AA10: 3.08872632 | AB10: 0.5 | AD10: 0.5 | AE10: 625.0893607 | AF10: 3.47481711 | AG10: 0.5 | AS10: Juli | AU10: =$AK$6&"_"&AL4 -> Børnehave_I | AV10: 19 | AW10: 21 | AY10: Juli_Bolig | AZ10: 55 | BO10: Juli | BP10: 16.4 | BQ10: 74 | BR10: 59 | BS10: 62 | BT10: 66 | BU10: 69
B11: Målt indvendig relativ luftfugtighed | C11: RF,luft | E11: % | O11: 0.6 | P11: 629.632066 | Q11: 0 | R11: 0.6 | T11: 0.6 | U11: 629.632066 | V11: 2.91685626 | W11: 0.6 | Y11: 0.6 | Z11: 629.632066 | AA11: 3.111313344 | AB11: 0.6 | AD11: 0.6 | AE11: 629.632066 | AF11: 3.500227512 | AG11: 0.6 | AS11: August | AU11: =$AK$6&"_"&AL5 -> Børnehave_II | AV11: 17.5 | AW11: 22.5 | AY11: August_Bolig | AZ11: 60 | BO11: August | BP11: 16.7 | BQ11: 71 | BR11: 61 | BS11: 64 | BT11: 66 | BU11: 69
B12: Undgå følgende svampetype | C12: - | O12: 0.7 | P12: 634.2039984 | Q12: 0 | R12: 0.7 | T12: 0.7 | U12: 634.2039984 | V12: 2.938169763 | W12: 0.7 | Y12: 0.7 | Z12: 634.2039984 | AA12: 3.134047747 | AB12: 0.7 | AD12: 0.7 | AE12: 634.2039984 | AF12: 3.525803716 | AG12: 0.7 | AS12: September | AU12: =$AK$6&"_"&AL6 -> Børnehave_III | AV12: 16.5 | AW12: 23.5 | AY12: September_Bolig | AZ12: 65 | BO12: September | BP12: 13.7 | BQ12: 85 | BR12: 58 | BS12: 62 | BT12: 65 | BU12: 69
B13: Atmosfærisk tryk | C13: pa | D13: 101325 | E13: Pa | O13: 0.8 | P13: 638.8053199 | Q13: 0 | R13: 0.8 | T13: 0.8 | U13: 638.8053199 | V13: 2.959622226 | W13: 0.8 | Y13: 0.8 | Z13: 638.8053199 | AA13: 3.156930375 | AB13: 0.8 | AD13: 0.8 | AE13: 638.8053199 | AF13: 3.551546671 | AG13: 0.8 | AS13: Oktober | AU13: =$AK$7&"_"&AL4 -> Butik_I | AV13: 17.5 | AW13: 20.5 | AY13: Oktober_Bolig | AZ13: 65 | BO13: Oktober | BP13: 9.2 | BQ13: 87 | BR13: 51 | BS13: 57 | BT13: 63 | BU13: 69
O14: 0.9 | P14: 643.436193 | Q14: 0 | R14: 0.9 | T14: 0.9 | U14: 643.436193 | V14: 2.981214446 | W14: 0.9 | Y14: 0.9 | Z14: 643.436193 | AA14: 3.179962076 | AB14: 0.9 | AD14: 0.9 | AE14: 643.436193 | AF14: 3.577457335 | AG14: 0.9 | AS14: November | AU14: =$AK$7&"_"&AL5 -> Butik_II | AV14: 16 | AW14: 22 | AY14: November_Bolig | AZ14: 60 | BO14: November | BP14: 5 | BQ14: 91 | BR14: 45 | BS14: 53 | BT14: 61 | BU14: 69
B15: Beregnet data | G15: Tekst | O15: 1 | P15: 648.096781 | Q15: 0 | R15: 1 | T15: 1 | U15: 648.096781 | V15: 3.002947222 | W15: 1 | Y15: 1 | Z15: 648.096781 | AA15: 3.203143704 | AB15: 1 | AD15: 1 | AE15: 648.096781 | AF15: 3.603536667 | AG15: 1 | AS15: December | AU15: =$AK$7&"_"&AL6 -> Butik_III | AV15: 15 | AW15: 23 | AY15: December_Bolig | AZ15: 50 | BO15: December | BP15: 1.6 | BQ15: 88 | BR15: 38 | BS15: 49 | BT15: 59 | BU15: 69
B16: Korrigeret indvendig overfladetemperatur | C16: Toi,kor | D16: =IFERROR(D7-(D3-D9)/(D3-D4)*(D7-D8),"") ->  | E16: °C | G16: Målt | H16: =IF(Værdi14="-","",IF(Værdi14>VALUE(Værdi7),FIXED(Værdi14,1,FALSE)&"°C > "&FIXED(Værdi7,1,FALSE)&"°C: "&"Risiko for skimmeldannelse",FIXED(Værdi14,1,FALSE)&"°C < "&FIXED(Værdi7,1,FALSE)&"°C: "&"Ingen risiko for skimmeldannelse")) -> 50,0°C > 0,0°C: Risiko for skimmeldannelse | O16: 1.1 | P16: 652.7872481 | Q16: 0 | R16: 1.1 | T16: 1.1 | U16: 652.7872481 | V16: 3.024821359 | W16: 1.1 | Y16: 1.1 | Z16: 652.7872481 | AA16: 3.226476117 | AB16: 1.1 | AD16: 1.1 | AE16: 652.7872481 | AF16: 3.629785631 | AG16: 1.1 | AY16: Januar_Kontor | AZ16: 25
B17: Korrigeret udvendig overfladetemperatur | C17: Tou,kor | D17: =IFERROR(D8+(D10-D4)/(D3-D4)*(D7-D8),"") ->  | E17: °C | G17: Korrigeret | H17: =IFERROR(IF(Værdi15="-","",IF(Værdi15>Værdi12,FIXED(Værdi15,1,FALSE)&"°C > "&FIXED(Værdi12,1,FALSE)&"°C: "&"Risiko for skimmeldannelse",FIXED(Værdi15,1,FALSE)&"°C < "&FIXED(Værdi12,1,FALSE)&"°C: "&"Ingen risiko for skimmeldannelse")),"") ->  | O17: 1.2 | P17: 657.5077591 | Q17: 0 | R17: 1.2 | T17: 1.2 | U17: 657.5077591 | V17: 3.046837665 | W17: 1.2 | Y17: 1.2 | Z17: 657.5077591 | AA17: 3.249960176 | AB17: 1.2 | AD17: 1.2 | AE17: 657.5077591 | AF17: 3.656205198 | AG17: 1.2 | AU17: Kilde: | AV17: DS/EN 15251 | AY17: Februar_Kontor | AZ17: 20 | BO17: Tabel 4 Sbi 224
B18: Korrigeret indvendig overfladetemperaturdifferens | C18: DTi,kor | D18: =IFERROR(Værdi19/(Værdi5-Værdi6)*(Værdi10-Værdi11),"") ->  | E18: °C | G18: Målt, damp | H18: =IF(B_Værdi4="-","",IF(Værdi14="-","",IF(Værdi14>VALUE(B_Værdi4),FIXED(Værdi14,1,FALSE)&"°C > "&FIXED(B_Værdi4,1,FALSE)&"°C: "&"Risiko for skimmeldannelse",FIXED(Værdi14,1,FALSE)&"°C < "&FIXED(B_Værdi4,1,FALSE)&"°C: "&"Ingen risiko for skimmeldannelse"))) ->  | O18: 1.3 | P18: 662.2584795 | Q18: 0 | R18: 1.3 | T18: 1.3 | U18: 662.2584795 | V18: 3.068996951 | W18: 1.3 | Y18: 1.3 | Z18: 662.2584795 | AA18: 3.273596748 | AB18: 1.3 | AD18: 1.3 | AE18: 662.2584795 | AF18: 3.682796341 | AG18: 1.3 | AY18: Marts_Kontor | AZ18: 25
B19: Korrigeret udvendig overfladetemperaturdifferens | C19: DTtu,kor | D19: =IFERROR(Værdi20/(Værdi5-Værdi6)*(Værdi10-Værdi11),"") ->  | E19: °C | G19: Korrigeret, damp | H19: =IF(B_Værdi5="-","",IF(Værdi15="-","",IF(Værdi15>B_Værdi5,FIXED(Værdi15,1,FALSE)&"°C > "&FIXED(B_Værdi5,1,FALSE)&"°C: "&"Risiko for skimmeldannelse",FIXED(Værdi15,1,FALSE)&"°C < "&FIXED(B_Værdi5,1,FALSE)&"°C: "&"Ingen risiko for skimmeldannelse"))) ->  | O19: 1.4 | P19: 667.0395758 | Q19: 0 | R19: 1.4 | T19: 1.4 | U19: 667.0395758 | V19: 3.091300034 | W19: 1.4 | Y19: 1.4 | Z19: 667.0395758 | AA19: 3.297386703 | AB19: 1.4 | AD19: 1.4 | AE19: 667.0395758 | AF19: 3.709560041 | AG19: 1.4 | AY19: April_Kontor | AZ19: 35
B20: Kritisk relativ materialefugtighed ift. skimmel | C20: RF,mat | E20: % | O20: 1.5 | P20: 671.851215 | Q20: 0 | R20: 1.5 | T20: 1.5 | U20: 671.851215 | V20: 3.113747735 | W20: 1.5 | Y20: 1.5 | Z20: 671.851215 | AA20: 3.321330917 | AB20: 1.5 | AD20: 1.5 | AE20: 671.851215 | AF20: 3.736497282 | AG20: 1.5 | AY20: Maj_Kontor | AZ20: 40
B21: Partialtryk af vanddamp, målt | C21: pw,mål | D21: =EXP(77.345+0.0057*(D3+273)-7235/(D3+273))/(D3+273)^8.2 -> 602.8086267 | E21: Pa | G21: Udråb | O21: 1.6 | P21: 676.6935649 | Q21: 0 | R21: 1.6 | T21: 1.6 | U21: 676.6935649 | V21: 3.136340877 | W21: 1.6 | Y21: 1.6 | Z21: 676.6935649 | AA21: 3.345430268 | AB21: 1.6 | AD21: 1.6 | AE21: 676.6935649 | AF21: 3.763609052 | AG21: 1.6 | AY21: Juni_Kontor | AZ21: 45
B22: Partialtryk af vanddamp, korrigeret | C22: pw,kor | D22: =EXP(77.345+0.0057*(D7+273)-7235/(D7+273))/(D7+273)^8.2 -> 602.8086267 | E22: Pa | G22: Målt | H22: =IF(Værdi14>VALUE(Værdi7),"true","false") -> true | O22: 1.7 | P22: 681.5667942 | Q22: 0 | R22: 1.7 | T22: 1.7 | U22: 681.5667942 | V22: 3.159080288 | W22: 1.7 | Y22: 1.7 | Z22: 681.5667942 | AA22: 3.369685641 | AB22: 1.7 | AD22: 1.7 | AE22: 681.5667942 | AF22: 3.790896346 | AG22: 1.7 | AY22: Juli_Kontor | AZ22: 50
B23: Vandindhold i luft, målt | C23: x,mål | D23: =(D11%*0.62198*D21/(D13-D21))*1000 -> 0 | E23: kg/kg | G23: Korrigeret | H23: =IF(Værdi15>Værdi12,"true","false") -> false | O23: 1.8 | P23: 686.4710721 | Q23: 0 | R23: 1.8 | T23: 1.8 | U23: 686.4710721 | V23: 3.181966802 | W23: 1.8 | Y23: 1.8 | Z23: 686.4710721 | AA23: 3.394097922 | AB23: 1.8 | AD23: 1.8 | AE23: 686.4710721 | AF23: 3.818360163 | AG23: 1.8 | AY23: August_Kontor | AZ23: 55
B24: Vandindhold i luft, korrigeret | C24: x,kor | D24: =(D11%*0.62198*D22/(D13-D22))*1000 -> 0 | E24: kg/kg | G24: Målt, damp | H24: =IF(B_Værdi4="-","false",IF(Værdi14>VALUE(B_Værdi4),"true","false")) -> false | O24: 1.9 | P24: 691.4065688 | Q24: 0 | R24: 1.9 | T24: 1.9 | U24: 691.4065688 | V24: 3.205001255 | W24: 1.9 | Y24: 1.9 | Z24: 691.4065688 | AA24: 3.418668006 | AB24: 1.9 | AD24: 1.9 | AE24: 691.4065688 | AF24: 3.846001506 | AG24: 1.9 | AY24: September_Kontor | AZ24: 60
B25: Kritisk overfladetemperatur ift skimmel, målt | C25: Tok,mål | D25: =IF(OR(D23<Q5,D23>Q505),"-",VLOOKUP(D23,Q5:R505,2,TRUE)) -> 50 | E25: °C | G25: Korrigeret, damp | H25: =IF(Værdi15>B_Værdi5,"true","false") -> false | O25: 2 | P25: 696.3734552 | Q25: 0 | R25: 2 | T25: 2 | U25: 696.3734552 | V25: 3.228184488 | W25: 2 | Y25: 2 | Z25: 696.3734552 | AA25: 3.443396787 | AB25: 2 | AD25: 2 | AE25: 696.3734552 | AF25: 3.873821386 | AG25: 2 | AY25: Oktober_Kontor | AZ25: 55
B26: Kritisk overfladetemperatur ift skimmel, korrigeret | C26: Tok,kor | D26: =IF(OR(D24<Q5,D24>Q505),"-",VLOOKUP(D24,Q5:R505,2,TRUE)) -> 50 | E26: °C | O26: 2.1 | P26: 701.371903 | Q26: 0 | R26: 2.1 | T26: 2.1 | U26: 701.371903 | V26: 3.251517346 | W26: 2.1 | Y26: 2.1 | Z26: 701.371903 | AA26: 3.468285169 | AB26: 2.1 | AD26: 2.1 | AE26: 701.371903 | AF26: 3.901820815 | AG26: 2.1 | AY26: November_Kontor | AZ26: 45
B27: Kritisk overfladetemperatur, målt, lav RF | C27: Tok,mål | D27: =IF(OR($D$23<$V$5,$D$23>$V$505),"-",VLOOKUP($D$23,$V$5:$W$505,2,TRUE)) -> - | E27: °C | G27: Billede (Thumbs up/down) | O27: 2.2 | P27: 706.4020844 | Q27: 0 | R27: 2.2 | T27: 2.2 | U27: 706.4020844 | V27: 3.275000678 | W27: 2.2 | Y27: 2.2 | Z27: 706.4020844 | AA27: 3.493334056 | AB27: 2.2 | AD27: 2.2 | AE27: 706.4020844 | AF27: 3.930000813 | AG27: 2.2 | AY27: December_Kontor | AZ27: 35
B28: Kritisk overfladetemperatur, korrigeret, lav RF | C28: Tok,kor | D28: =IF(OR($D$24<$V$5,$D$24>$V$505),"-",VLOOKUP($D$24,$V$5:$W$505,2,TRUE)) -> - | E28: °C | G28: Up | H28: =IF(OR(Udråb1="true",Udråb2="true"),"false","true") -> false | O28: 2.3 | P28: 711.4641728 | Q28: 0 | R28: 2.3 | T28: 2.3 | U28: 711.4641728 | V28: 3.298635337 | W28: 2.3 | Y28: 2.3 | Z28: 711.4641728 | AA28: 3.51854436 | AB28: 2.3 | AD28: 2.3 | AE28: 711.4641728 | AF28: 3.958362405 | AG28: 2.3
B29: Kritisk overfladetemperatur, målt, middel RF | C29: Tok,mål | D29: =IF(OR($D$23<$AA$5,$D$23>$AA$505),"-",VLOOKUP($D$23,$AA$5:$AB$505,2,TRUE)) -> - | E29: °C | G29: Down | H29: =IF(OR(Udråb1="true",Udråb2="true"),"true","false") -> true | O29: 2.4 | P29: 716.5583421 | Q29: 0 | R29: 2.4 | T29: 2.4 | U29: 716.5583421 | V29: 3.322422182 | W29: 2.4 | Y29: 2.4 | Z29: 716.5583421 | AA29: 3.543916994 | AB29: 2.4 | AD29: 2.4 | AE29: 716.5583421 | AF29: 3.986906618 | AG29: 2.4 | AY29: Kilde: | AZ29: http://arbejdstilsynet.dk/da/arbejdsmiljoemner/laes-ogsaa/maling-og-vurdering-af-indeklimaet/15-luftfugtighed.aspx
B30: Kritisk overfladetemperatur, korrigeret, middel RF | C30: Tok,kor | D30: =IF(OR($D$24<$AA$5,$D$24>$AA$505),"-",VLOOKUP($D$24,$AA$5:$AB$505,2,TRUE)) -> - | E30: °C | G30: Up, damp | H30: =IF(OR(Udråb5="true",Udråb6="true"),"false","true") -> true | O30: 2.5 | P30: 721.6847671 | Q30: 0 | R30: 2.5 | T30: 2.5 | U30: 721.6847671 | V30: 3.346362073 | W30: 2.5 | Y30: 2.5 | Z30: 721.6847671 | AA30: 3.569452878 | AB30: 2.5 | AD30: 2.5 | AE30: 721.6847671 | AF30: 4.015634488 | AG30: 2.5
B31: Kritisk overfladetemperatur, målt, høj RF | C31: Tok,mål | D31: =IF(OR($D$23<$AF$5,$D$23>$AF$505),"-",VLOOKUP($D$23,$AF$5:$AG$505,2,TRUE)) -> - | E31: °C | G31: Down, damp | H31: =IF(OR(Udråb5="true",Udråb6="true"),"true","false") -> false | O31: 2.6 | P31: 726.8436231 | Q31: 0 | R31: 2.6 | T31: 2.6 | U31: 726.8436231 | V31: 3.370455879 | W31: 2.6 | Y31: 2.6 | Z31: 726.8436231 | AA31: 3.595152937 | AB31: 2.6 | AD31: 2.6 | AE31: 726.8436231 | AF31: 4.044547054 | AG31: 2.6
B32: Kritisk overfladetemperatur, korrigeret, høj RF | C32: Tok,kor | D32: =IF(OR($D$24<$AF$5,$D$24>$AF$505),"-",VLOOKUP($D$24,$AF$5:$AG$505,2,TRUE)) -> - | E32: °C | O32: 2.7 | P32: 732.0350867 | Q32: 0 | R32: 2.7 | T32: 2.7 | U32: 732.0350867 | V32: 3.394704468 | W32: 2.7 | Y32: 2.7 | Z32: 732.0350867 | AA32: 3.621018099 | AB32: 2.7 | AD32: 2.7 | AE32: 732.0350867 | AF32: 4.073645361 | AG32: 2.7
O33: 2.8 | P33: 737.2593347 | Q33: 0 | R33: 2.8 | T33: 2.8 | U33: 737.2593347 | V33: 3.419108715 | W33: 2.8 | Y33: 2.8 | Z33: 737.2593347 | AA33: 3.647049296 | AB33: 2.8 | AD33: 2.8 | AE33: 737.2593347 | AF33: 4.102930458 | AG33: 2.8
B34: Andet | O34: 2.9 | P34: 742.5165452 | Q34: 0 | R34: 2.9 | T34: 2.9 | U34: 742.5165452 | V34: 3.443669501 | W34: 2.9 | Y34: 2.9 | Z34: 742.5165452 | AA34: 3.673247467 | AB34: 2.9 | AD34: 2.9 | AE34: 742.5165452 | AF34: 4.132403401 | AG34: 2.9
B35: Version | C35: 1.01 | O35: 3 | P35: 747.8068967 | Q35: 0 | R35: 3 | T35: 3 | U35: 747.8068967 | V35: 3.468387708 | W35: 3 | Y35: 3 | Z35: 747.8068967 | AA35: 3.699613555 | AB35: 3 | AD35: 3 | AE35: 747.8068967 | AF35: 4.162065249 | AG35: 3
O36: 3.1 | P36: 753.1305688 | Q36: 0 | R36: 3.1 | T36: 3.1 | U36: 753.1305688 | V36: 3.493264224 | W36: 3.1 | Y36: 3.1 | Z36: 753.1305688 | AA36: 3.726148505 | AB36: 3.1 | AD36: 3.1 | AE36: 753.1305688 | AF36: 4.191917068 | AG36: 3.1
B37: Beregningsforudsætninger for skimmeldannelse | O37: 3.2 | P37: 758.4877416 | Q37: 0 | R37: 3.2 | T37: 3.2 | U37: 758.4877416 | V37: 3.518299941 | W37: 3.2 | Y37: 3.2 | Z37: 758.4877416 | AA37: 3.75285327 | AB37: 3.2 | AD37: 3.2 | AE37: 758.4877416 | AF37: 4.221959929 | AG37: 3.2
B38: U-værdi | E38: W/m²K | O38: 3.3 | P38: 763.8785963 | Q38: 0 | R38: 3.3 | T38: 3.3 | U38: 763.8785963 | V38: 3.543495757 | W38: 3.3 | Y38: 3.3 | Z38: 763.8785963 | AA38: 3.779728807 | AB38: 3.3 | AD38: 3.3 | AE38: 763.8785963 | AF38: 4.252194908 | AG38: 3.3
B39: Varmeledningevne | E39: W/mK | O39: 3.4 | P39: 769.3033147 | Q39: 0 | R39: 3.4 | T39: 3.4 | U39: 769.3033147 | V39: 3.568852572 | W39: 3.4 | Y39: 3.4 | Z39: 769.3033147 | AA39: 3.806776077 | AB39: 3.4 | AD39: 3.4 | AE39: 769.3033147 | AF39: 4.282623086 | AG39: 3.4
B40: Tykkelse | E40: m | O40: 3.5 | P40: 774.7620793 | Q40: 0 | R40: 3.5 | T40: 3.5 | U40: 774.7620793 | V40: 3.594371292 | W40: 3.5 | Y40: 3.5 | Z40: 774.7620793 | AA40: 3.833996045 | AB40: 3.5 | AD40: 3.5 | AE40: 774.7620793 | AF40: 4.31324555 | AG40: 3.5
B41: Temperatur ved dampspærre, målt | D41: =IF(ISERROR(Værdi7-(Værdi5-Værdi6)*(D40/D39)/(1/D38))=TRUE,"-",Værdi7-(Værdi5-Værdi6)*(D40/D39)/(1/D38)) -> - | E41: °C | O41: 3.6 | P41: 780.2550738 | Q41: 0 | R41: 3.6 | T41: 3.6 | U41: 780.2550738 | V41: 3.620052827 | W41: 3.6 | Y41: 3.6 | Z41: 780.2550738 | AA41: 3.861389682 | AB41: 3.6 | AD41: 3.6 | AE41: 780.2550738 | AF41: 4.344063392 | AG41: 3.6
B42: Temperatur ved dampspærre, beregnet | D42: =IF(ISERROR(Værdi12-(Værdi10-Værdi11)*(D40/D39)/(1/D38))=TRUE,"-",Værdi12-(Værdi10-Værdi11)*(D40/D39)/(1/D38)) -> - | E42: °C | O42: 3.7 | P42: 785.7824823 | Q42: 0 | R42: 3.7 | T42: 3.7 | U42: 785.7824823 | V42: 3.645898092 | W42: 3.7 | Y42: 3.7 | Z42: 785.7824823 | AA42: 3.888957964 | AB42: 3.7 | AD42: 3.7 | AE42: 785.7824823 | AF42: 4.37507771 | AG42: 3.7
O43: 3.8 | P43: 791.34449 | Q43: 0 | R43: 3.8 | T43: 3.8 | U43: 791.34449 | V43: 3.671908005 | W43: 3.8 | Y43: 3.8 | Z43: 791.34449 | AA43: 3.916701872 | AB43: 3.8 | AD43: 3.8 | AE43: 791.34449 | AF43: 4.406289606 | AG43: 3.8
B44: Varmledningsevne | O44: 3.9 | P44: 796.9412827 | Q44: 0 | R44: 3.9 | T44: 3.9 | U44: 796.9412827 | V44: 3.69808349 | W44: 3.9 | Y44: 3.9 | Z44: 796.9412827 | AA44: 3.94462239 | AB44: 3.9 | AD44: 3.9 | AE44: 796.9412827 | AF44: 4.437700188 | AG44: 3.9
B45: Varmeledningevne, mat A | E45: W/mK | O45: 4 | P45: 802.5730471 | Q45: 0 | R45: 4 | T45: 4 | U45: 802.5730471 | V45: 3.724425476 | W45: 4 | Y45: 4 | Z45: 802.5730471 | AA45: 3.972720508 | AB45: 4 | AD45: 4 | AE45: 802.5730471 | AF45: 4.469310571 | AG45: 4
B46: Varmeledningevne, mat B | E46: W/mK | O46: 4.1 | P46: 808.2399707 | Q46: 0 | R46: 4.1 | T46: 4.1 | U46: 808.2399707 | V46: 3.750934895 | W46: 4.1 | Y46: 4.1 | Z46: 808.2399707 | AA46: 4.000997222 | AB46: 4.1 | AD46: 4.1 | AE46: 808.2399707 | AF46: 4.501121874 | AG46: 4.1
B47: Varmeledningevne, mat C | E47: W/mK | O47: 4.2 | P47: 813.942242 | Q47: 0 | R47: 4.2 | T47: 4.2 | U47: 813.942242 | V47: 3.777612685 | W47: 4.2 | Y47: 4.2 | Z47: 813.942242 | AA47: 4.029453531 | AB47: 4.2 | AD47: 4.2 | AE47: 813.942242 | AF47: 4.533135222 | AG47: 4.2
B48: Andel, mat A | E48: % | O48: 4.3 | P48: 819.6800501 | Q48: 0 | R48: 4.3 | T48: 4.3 | U48: 819.6800501 | V48: 3.804459787 | W48: 4.3 | Y48: 4.3 | Z48: 819.6800501 | AA48: 4.05809044 | AB48: 4.3 | AD48: 4.3 | AE48: 819.6800501 | AF48: 4.565351745 | AG48: 4.3
B49: Andel, mat B | E49: % | O49: 4.4 | P49: 825.4535849 | Q49: 0 | R49: 4.4 | T49: 4.4 | U49: 825.4535849 | V49: 3.831477149 | W49: 4.4 | Y49: 4.4 | Z49: 825.4535849 | AA49: 4.086908959 | AB49: 4.4 | AD49: 4.4 | AE49: 825.4535849 | AF49: 4.597772578 | AG49: 4.4
B50: Andel, mat C | E50: % | O50: 4.5 | P50: 831.2630373 | Q50: 0 | R50: 4.5 | T50: 4.5 | U50: 831.2630373 | V50: 3.858665721 | W50: 4.5 | Y50: 4.5 | Z50: 831.2630373 | AA50: 4.115910102 | AB50: 4.5 | AD50: 4.5 | AE50: 831.2630373 | AF50: 4.630398865 | AG50: 4.5
B51: Gennemsnitlig varmeledningsevne | D51: =IFERROR((VALUE(D45)*VALUE(D48)+VALUE(D46)*VALUE(D49)+VALUE(D47)*VALUE(D50))/(VALUE(D48)+VALUE(D49)+VALUE(D50)),"") ->  | O51: 4.6 | P51: 837.108599 | Q51: 0 | R51: 4.6 | T51: 4.6 | U51: 837.108599 | V51: 3.886026459 | W51: 4.6 | Y51: 4.6 | Z51: 837.108599 | AA51: 4.14509489 | AB51: 4.6 | AD51: 4.6 | AE51: 837.108599 | AF51: 4.663231751 | AG51: 4.6
O52: 4.7 | P52: 842.9904624 | Q52: 0 | R52: 4.7 | T52: 4.7 | U52: 842.9904624 | V52: 3.913560324 | W52: 4.7 | Y52: 4.7 | Z52: 842.9904624 | AA52: 4.174464346 | AB52: 4.7 | AD52: 4.7 | AE52: 842.9904624 | AF52: 4.696272389 | AG52: 4.7
B53: Energiforbrug, kuldebro | O53: 4.8 | P53: 848.9088209 | Q53: 0 | R53: 4.8 | T53: 4.8 | U53: 848.9088209 | V53: 3.941268283 | W53: 4.8 | Y53: 4.8 | Z53: 848.9088209 | AA53: 4.204019501 | AB53: 4.8 | AD53: 4.8 | AE53: 848.9088209 | AF53: 4.729521939 | AG53: 4.8
B54: Kuldebrosareal | E54: m² | O54: 4.9 | P54: 854.8638687 | Q54: 0 | R54: 4.9 | T54: 4.9 | U54: 854.8638687 | V54: 3.969151304 | W54: 4.9 | Y54: 4.9 | Z54: 854.8638687 | AA54: 4.23376139 | AB54: 4.9 | AD54: 4.9 | AE54: 854.8638687 | AF54: 4.762981564 | AG54: 4.9
B55: Varmestrømmens retning | O55: 5 | P55: 860.8558008 | Q55: 0 | R55: 5 | T55: 5 | U55: 860.8558008 | V55: 3.997210362 | W55: 5 | Y55: 5 | Z55: 860.8558008 | AA55: 4.263691053 | AB55: 5 | AD55: 5 | AE55: 860.8558008 | AF55: 4.796652435 | AG55: 5
B56: Indvendig overgangsisolans | D56: =IFERROR(VLOOKUP(D55,$BB$4:$BC$6,2,FALSE),"") ->  | E56: m²K/W | O56: 5.1 | P56: 866.884813 | Q56: 0 | R56: 5.1 | T56: 5.1 | U56: 866.884813 | V56: 4.025446438 | W56: 5.1 | Y56: 5.1 | Z56: 866.884813 | AA56: 4.293809534 | AB56: 5.1 | AD56: 5.1 | AE56: 866.884813 | AF56: 4.830535726 | AG56: 5.1
B57: U-kuldebro | D57: =IF(Værdi5-Værdi7>=5,(Værdi5-Værdi7)/((Værdi5-Værdi6)*D56),"") ->  | E57: W/m²K | O57: 5.2 | P57: 872.951102 | Q57: 0 | R57: 5.2 | T57: 5.2 | U57: 872.951102 | V57: 4.053860516 | W57: 5.2 | Y57: 5.2 | Z57: 872.951102 | AA57: 4.324117884 | AB57: 5.2 | AD57: 5.2 | AE57: 872.951102 | AF57: 4.86463262 | AG57: 5.2
B58: Energiforbrug | D58: =IF(D57="","",(D57-B_Værdi1)*D54*3112*24/1000) ->  | E58: kWh/år | O58: 5.3 | P58: 879.0548655 | Q58: 0 | R58: 5.3 | T58: 5.3 | U58: 879.0548655 | V58: 4.082453586 | W58: 5.3 | Y58: 5.3 | Z58: 879.0548655 | AA58: 4.354617158 | AB58: 5.3 | AD58: 5.3 | AE58: 879.0548655 | AF58: 4.898944303 | AG58: 5.3
B59: Omkostning | D59: =IF(D57="","",E_Værdi4*Energipris) ->  | E59: kr/år | O59: 5.4 | P59: 885.1963018 | Q59: 0 | R59: 5.4 | T59: 5.4 | U59: 885.1963018 | V59: 4.111226641 | W59: 5.4 | Y59: 5.4 | Z59: 885.1963018 | AA59: 4.385308418 | AB59: 5.4 | AD59: 5.4 | AE59: 885.1963018 | AF59: 4.93347197 | AG59: 5.4
O60: 5.5 | P60: 891.3756101 | Q60: 0 | R60: 5.5 | T60: 5.5 | U60: 891.3756101 | V60: 4.140180682 | W60: 5.5 | Y60: 5.5 | Z60: 891.3756101 | AA60: 4.416192727 | AB60: 5.5 | AD60: 5.5 | AE60: 891.3756101 | AF60: 4.968216818 | AG60: 5.5
B61: Utæthed | O61: 5.6 | P61: 897.5929907 | Q61: 0 | R61: 5.6 | T61: 5.6 | U61: 897.5929907 | V61: 4.169316711 | W61: 5.6 | Y61: 5.6 | Z61: 897.5929907 | AA61: 4.447271158 | AB61: 5.6 | AD61: 5.6 | AE61: 897.5929907 | AF61: 5.003180053 | AG61: 5.6
B62: Målt luftskifte: | E62: L/s | O62: 5.7 | P62: 903.8486445 | Q62: 0 | R62: 5.7 | T62: 5.7 | U62: 903.8486445 | V62: 4.198635738 | W62: 5.7 | Y62: 5.7 | Z62: 903.8486445 | AA62: 4.478544787 | AB62: 5.7 | AD62: 5.7 | AE62: 903.8486445 | AF62: 5.038362886 | AG62: 5.7
B63: Gulvareal: | E63: m² | G63: Luftskiftekrav | O63: 5.8 | P63: 910.1427734 | Q63: 0 | R63: 5.8 | T63: 5.8 | U63: 910.1427734 | V63: 4.228138777 | W63: 5.8 | Y63: 5.8 | Z63: 910.1427734 | AA63: 4.510014696 | AB63: 5.8 | AD63: 5.8 | AE63: 910.1427734 | AF63: 5.073766533 | AG63: 5.8
B64: Klimaskærmens overfladeareal: | E64: m² | G64: A.gulv/A.klimaskærm: | H64: =IFERROR(D64/Utæthed2,"") ->  | O64: 5.9 | P64: 916.4755801 | Q64: 0 | R64: 5.9 | T64: 5.9 | U64: 916.4755801 | V64: 4.257826847 | W64: 5.9 | Y64: 5.9 | Z64: 916.4755801 | AA64: 4.54168197 | AB64: 5.9 | AD64: 5.9 | AE64: 916.4755801 | AF64: 5.109392217 | AG64: 5.9
B65: Luftskifte, q50 | D65: =IFERROR(Utæthed1/Utæthed2,"") ->  | E65: L/s pr. m² | G65: Kolonne | H65: =IF(H64>3,3,2) -> 3 | O65: 6 | P65: 922.8472681 | Q65: 0 | R65: 6 | T65: 6 | U65: 922.8472681 | V65: 4.287700972 | W65: 6 | Y65: 6 | Z65: 922.8472681 | AA65: 4.573547704 | AB65: 6 | AD65: 6 | AE65: 922.8472681 | AF65: 5.145241167 | AG65: 6
B66: Krav | O66: 6.1 | P66: 929.258042 | Q66: 0 | R66: 6.1 | T66: 6.1 | U66: 929.258042 | V66: 4.317762181 | W66: 6.1 | Y66: 6.1 | Z66: 929.258042 | AA66: 4.605612993 | AB66: 6.1 | AD66: 6.1 | AE66: 929.258042 | AF66: 5.181314617 | AG66: 6.1
B67: Krav, q50 | D67: =IFERROR(VLOOKUP(Utæthed4,$BE$4:$BG$7,H65,FALSE),"") ->  | E67: L/s pr. m² | G67: Brugstid | O67: 6.2 | P67: 935.7081071 | Q67: 0 | R67: 6.2 | T67: 6.2 | U67: 935.7081071 | V67: 4.348011507 | W67: 6.2 | Y67: 6.2 | Z67: 935.7081071 | AA67: 4.637878941 | AB67: 6.2 | AD67: 6.2 | AE67: 935.7081071 | AF67: 5.217613809 | AG67: 6.2
B68: Brugstid: | D68: 1 | E68: - | G68: Brugstid: | H68: =D68/24 -> 0.04166666667 | O68: 6.3 | P68: 942.1976696 | Q68: 0 | R68: 6.3 | T68: 6.3 | U68: 942.1976696 | V68: 4.378449991 | W68: 6.3 | Y68: 6.3 | Z68: 942.1976696 | AA68: 4.670346657 | AB68: 6.3 | AD68: 6.3 | AE68: 942.1976696 | AF68: 5.254139989 | AG68: 6.3
B69: Energiforbrug, utæthed | D69: =IFERROR(90.45*Utæthed2*((Utæthed3*0.06+0.04)*Utæthed10+Utæthed3*0.06*(1-Utæthed10)),"") ->  | E69: kWh/år | G69: Uden for brugstid: | H69: =1-H68 -> 0.9583333333 | O69: 6.4 | P69: 948.7269367 | Q69: =($D$20%*0.62198*P69/($D$13-P69))*1000 -> 0 | R69: 6.4 | T69: 6.4 | U69: 948.7269367 | V69: 4.409078675 | W69: 6.4 | Y69: 6.4 | Z69: 948.7269367 | AA69: 4.703017253 | AB69: 6.4 | AD69: 6.4 | AE69: 948.7269367 | AF69: 5.29089441 | AG69: 6.4
B70: Energiforbrug, krav | D70: =IFERROR(90.45*Utæthed2*((Utæthed5*0.06+0.04)*Utæthed10+Utæthed5*0.06*(1-Utæthed10)),"") ->  | E70: kWh/år | O70: 6.5 | P70: =EXP(77.345+0.0057*(O70+273)-7235/(O70+273))/(O70+273)^8.2 -> 955.2961162 | Q70: 0 | R70: =O70 -> 6.5 | T70: 6.5 | U70: =EXP(77.345+0.0057*(T70+273)-7235/(T70+273))/(T70+273)^8.2 -> 955.2961162 | V70: =($I$3%*0.62198*U70/($D$13-U70))*1000 -> 4.43989861 | W70: =T70 -> 6.5 | Y70: 6.5 | Z70: =EXP(77.345+0.0057*(Y70+273)-7235/(Y70+273))/(Y70+273)^8.2 -> 955.2961162 | AA70: =($I$4%*0.62198*Z70/($D$13-Z70))*1000 -> 4.735891851 | AB70: =Y70 -> 6.5 | AD70: 6.5 | AE70: =EXP(77.345+0.0057*(AD70+273)-7235/(AD70+273))/(AD70+273)^8.2 -> 955.2961162 | AF70: =($I$5%*0.62198*AE70/($D$13-AE70))*1000 -> 5.327878332 | AG70: =AD70 -> 6.5
B71: Energipris, varme | E71: kr/kWh | O71: 6.6 | P71: 961.9054171 | Q71: 0 | R71: 6.6 | T71: 6.6 | U71: 961.9054171 | V71: 4.47091085 | W71: 6.6 | Y71: 6.6 | Z71: 961.9054171 | AA71: 4.768971573 | AB71: 6.6 | AD71: 6.6 | AE71: 961.9054171 | AF71: 5.36509302 | AG71: 6.6
B72: Omkostning, utæthed | D72: =IFERROR(Utæthed6*D71,"") ->  | E72: kr/år | O72: 6.7 | P72: 968.5550491 | Q72: 0 | R72: 6.7 | T72: 6.7 | U72: 968.5550491 | V72: 4.502116454 | W72: 6.7 | Y72: 6.7 | Z72: 968.5550491 | AA72: 4.802257551 | AB72: 6.7 | AD72: 6.7 | AE72: 968.5550491 | AF72: 5.402539745 | AG72: 6.7
B73: Omkostning, krav | D73: =IFERROR(D70*D71,"") ->  | E73: kr/år | O73: 6.8 | P73: 975.2452229 | Q73: 0 | R73: 6.8 | T73: 6.8 | U73: 975.2452229 | V73: 4.533516488 | W73: 6.8 | Y73: 6.8 | Z73: 975.2452229 | AA73: 4.83575092 | AB73: 6.8 | AD73: 6.8 | AE73: 975.2452229 | AF73: 5.440219785 | AG73: 6.8
B74: Udråb 7 og billede 4 | D74: =IFERROR(IF(VALUE(Utæthed3)>Utæthed5,TRUE,FALSE),TRUE) -> TRUE | O74: 6.9 | P74: 981.97615 | Q74: 0 | R74: 6.9 | T74: 6.9 | U74: 981.97615 | V74: 4.56511202 | W74: 6.9 | Y74: 6.9 | Z74: 981.97615 | AA74: 4.869452822 | AB74: 6.9 | AD74: 6.9 | AE74: 981.97615 | AF74: 5.478134424 | AG74: 6.9
B75: Billede 3 | D75: =IFERROR(IF(VALUE(Utæthed3)>Utæthed5,FALSE,TRUE),TRUE) -> TRUE | O75: 7 | P75: 988.7480429 | Q75: 0 | R75: 7 | T75: 7 | U75: 988.7480429 | V75: 4.596904128 | W75: 7 | Y75: 7 | Z75: 988.7480429 | AA75: 4.903364403 | AB75: 7 | AD75: 7 | AE75: 988.7480429 | AF75: 5.516284953 | AG75: 7
O76: 7.1 | P76: 995.5611149 | Q76: 0 | R76: 7.1 | T76: 7.1 | U76: 995.5611149 | V76: 4.628893891 | W76: 7.1 | Y76: 7.1 | Z76: 995.5611149 | AA76: 4.937486817 | AB76: 7.1 | AD76: 7.1 | AE76: 995.5611149 | AF76: 5.554672669 | AG76: 7.1
B77: Anvendte formler til beregning af kritisk overfladetemperatur ift. skimmel: | O77: 7.2 | P77: 1002.41558 | Q77: 0 | R77: 7.2 | T77: 7.2 | U77: 1002.41558 | V77: 4.661082394 | W77: 7.2 | Y77: 7.2 | Z77: 1002.41558 | AA77: 4.97182122 | AB77: 7.2 | AD77: 7.2 | AE77: 1002.41558 | AF77: 5.593298873 | AG77: 7.2
O78: 7.3 | P78: 1009.311654 | Q78: 0 | R78: 7.3 | T78: 7.3 | U78: 1009.311654 | V78: 4.69347073 | W78: 7.3 | Y78: 7.3 | Z78: 1009.311654 | AA78: 5.006368779 | AB78: 7.3 | AD78: 7.3 | AE78: 1009.311654 | AF78: 5.632164876 | AG78: 7.3
O79: 7.4 | P79: 1016.249553 | Q79: 0 | R79: 7.4 | T79: 7.4 | U79: 1016.249553 | V79: 4.726059994 | W79: 7.4 | Y79: 7.4 | Z79: 1016.249553 | AA79: 5.041130661 | AB79: 7.4 | AD79: 7.4 | AE79: 1016.249553 | AF79: 5.671271993 | AG79: 7.4
O80: 7.5 | P80: 1023.229493 | Q80: 0 | R80: 7.5 | T80: 7.5 | U80: 1023.229493 | V80: 4.758851289 | W80: 7.5 | Y80: 7.5 | Z80: 1023.229493 | AA80: 5.076108042 | AB80: 7.5 | AD80: 7.5 | AE80: 1023.229493 | AF80: 5.710621547 | AG80: 7.5
O81: 7.6 | P81: 1030.251692 | Q81: 0 | R81: 7.6 | T81: 7.6 | U81: 1030.251692 | V81: 4.791845722 | W81: 7.6 | Y81: 7.6 | Z81: 1030.251692 | AA81: 5.111302104 | AB81: 7.6 | AD81: 7.6 | AE81: 1030.251692 | AF81: 5.750214867 | AG81: 7.6
O82: 7.7 | P82: 1037.31637 | Q82: 0 | R82: 7.7 | T82: 7.7 | U82: 1037.31637 | V82: 4.825044405 | W82: 7.7 | Y82: 7.7 | Z82: 1037.31637 | AA82: 5.146714032 | AB82: 7.7 | AD82: 7.7 | AE82: 1037.31637 | AF82: 5.790053286 | AG82: 7.7
O83: 7.8 | P83: 1044.423746 | Q83: 0 | R83: 7.8 | T83: 7.8 | U83: 1044.423746 | V83: 4.858448457 | W83: 7.8 | Y83: 7.8 | Z83: 1044.423746 | AA83: 5.182345021 | AB83: 7.8 | AD83: 7.8 | AE83: 1044.423746 | AF83: 5.830138148 | AG83: 7.8
O84: 7.9 | P84: 1051.57404 | Q84: 0 | R84: 7.9 | T84: 7.9 | U84: 1051.57404 | V84: 4.892059001 | W84: 7.9 | Y84: 7.9 | Z84: 1051.57404 | AA84: 5.218196268 | AB84: 7.9 | AD84: 7.9 | AE84: 1051.57404 | AF84: 5.870470801 | AG84: 7.9
O85: 8 | P85: 1058.767474 | Q85: 0 | R85: 8 | T85: 8 | U85: 1058.767474 | V85: 4.925877166 | W85: 8 | Y85: 8 | Z85: 1058.767474 | AA85: 5.254268977 | AB85: 8 | AD85: 8 | AE85: 1058.767474 | AF85: 5.911052599 | AG85: 8
O86: 8.1 | P86: 1066.004272 | Q86: 0 | R86: 8.1 | T86: 8.1 | U86: 1066.004272 | V86: 4.959904087 | W86: 8.1 | Y86: 8.1 | Z86: 1066.004272 | AA86: 5.290564359 | AB86: 8.1 | AD86: 8.1 | AE86: 1066.004272 | AF86: 5.951884904 | AG86: 8.1
O87: 8.2 | P87: 1073.284655 | Q87: 0 | R87: 8.2 | T87: 8.2 | U87: 1073.284655 | V87: 4.994140904 | W87: 8.2 | Y87: 8.2 | Z87: 1073.284655 | AA87: 5.327083631 | AB87: 8.2 | AD87: 8.2 | AE87: 1073.284655 | AF87: 5.992969085 | AG87: 8.2
O88: 8.3 | P88: 1080.608849 | Q88: 0 | R88: 8.3 | T88: 8.3 | U88: 1080.608849 | V88: 5.028588762 | W88: 8.3 | Y88: 8.3 | Z88: 1080.608849 | AA88: 5.363828013 | AB88: 8.3 | AD88: 8.3 | AE88: 1080.608849 | AF88: 6.034306515 | AG88: 8.3
O89: 8.4 | P89: 1087.977078 | Q89: 0 | R89: 8.4 | T89: 8.4 | U89: 1087.977078 | V89: 5.063248814 | W89: 8.4 | Y89: 8.4 | Z89: 1087.977078 | AA89: 5.400798735 | AB89: 8.4 | AD89: 8.4 | AE89: 1087.977078 | AF89: 6.075898577 | AG89: 8.4
O90: 8.5 | P90: 1095.38957 | Q90: 0 | R90: 8.5 | T90: 8.5 | U90: 1095.38957 | V90: 5.098122216 | W90: 8.5 | Y90: 8.5 | Z90: 1095.38957 | AA90: 5.43799703 | AB90: 8.5 | AD90: 8.5 | AE90: 1095.38957 | AF90: 6.117746659 | AG90: 8.5
O91: 8.6 | P91: 1102.846551 | Q91: 0 | R91: 8.6 | T91: 8.6 | U91: 1102.846551 | V91: 5.13321013 | W91: 8.6 | Y91: 8.6 | Z91: 1102.846551 | AA91: 5.475424139 | AB91: 8.6 | AD91: 8.6 | AE91: 1102.846551 | AF91: 6.159852156 | AG91: 8.6
B92: Anvendte formler til korrektion af overfladetemperaturer: | O92: 8.7 | P92: 1110.348249 | Q92: 0 | R92: 8.7 | T92: 8.7 | U92: 1110.348249 | V92: 5.168513726 | W92: 8.7 | Y92: 8.7 | Z92: 1110.348249 | AA92: 5.513081307 | AB92: 8.7 | AD92: 8.7 | AE92: 1110.348249 | AF92: 6.202216471 | AG92: 8.7
O93: 8.8 | P93: 1117.894894 | Q93: 0 | R93: 8.8 | T93: 8.8 | U93: 1117.894894 | V93: 5.204034176 | W93: 8.8 | Y93: 8.8 | Z93: 1117.894894 | AA93: 5.550969788 | AB93: 8.8 | AD93: 8.8 | AE93: 1117.894894 | AF93: 6.244841011 | AG93: 8.8
O94: 8.9 | P94: 1125.486715 | Q94: 0 | R94: 8.9 | T94: 8.9 | U94: 1125.486715 | V94: 5.239772661 | W94: 8.9 | Y94: 8.9 | Z94: 1125.486715 | AA94: 5.589090839 | AB94: 8.9 | AD94: 8.9 | AE94: 1125.486715 | AF94: 6.287727193 | AG94: 8.9
O95: 9 | P95: 1133.123944 | Q95: 0 | R95: 9 | T95: 9 | U95: 1133.123944 | V95: 5.275730366 | W95: 9 | Y95: 9 | Z95: 1133.123944 | AA95: 5.627445724 | AB95: 9 | AD95: 9 | AE95: 1133.123944 | AF95: 6.33087644 | AG95: 9
O96: 9.1 | P96: 1140.806812 | Q96: 0 | R96: 9.1 | T96: 9.1 | U96: 1140.806812 | V96: 5.311908483 | W96: 9.1 | Y96: 9.1 | Z96: 1140.806812 | AA96: 5.666035716 | AB96: 9.1 | AD96: 9.1 | AE96: 1140.806812 | AF96: 6.37429018 | AG96: 9.1
O97: 9.2 | P97: 1148.535552 | Q97: 0 | R97: 9.2 | T97: 9.2 | U97: 1148.535552 | V97: 5.348308209 | W97: 9.2 | Y97: 9.2 | Z97: 1148.535552 | AA97: 5.704862089 | AB97: 9.2 | AD97: 9.2 | AE97: 1148.535552 | AF97: 6.417969851 | AG97: 9.2
O98: 9.3 | P98: 1156.310399 | Q98: 0 | R98: 9.3 | T98: 9.3 | U98: 1156.310399 | V98: 5.384930746 | W98: 9.3 | Y98: 9.3 | Z98: 1156.310399 | AA98: 5.743926129 | AB98: 9.3 | AD98: 9.3 | AE98: 1156.310399 | AF98: 6.461916895 | AG98: 9.3
O99: 9.4 | P99: 1164.131586 | Q99: 0 | R99: 9.4 | T99: 9.4 | U99: 1164.131586 | V99: 5.421777304 | W99: 9.4 | Y99: 9.4 | Z99: 1164.131586 | AA99: 5.783229124 | AB99: 9.4 | AD99: 9.4 | AE99: 1164.131586 | AF99: 6.506132765 | AG99: 9.4
O100: 9.5 | P100: 1171.999351 | Q100: 0 | R100: 9.5 | T100: 9.5 | U100: 1171.999351 | V100: 5.458849097 | W100: 9.5 | Y100: 9.5 | Z100: 1171.999351 | AA100: 5.82277237 | AB100: 9.5 | AD100: 9.5 | AE100: 1171.999351 | AF100: 6.550618916 | AG100: 9.5
O101: 9.6 | P101: 1179.913929 | Q101: 0 | R101: 9.6 | T101: 9.6 | U101: 1179.913929 | V101: 5.496147346 | W101: 9.6 | Y101: 9.6 | Z101: 1179.913929 | AA101: 5.862557169 | AB101: 9.6 | AD101: 9.6 | AE101: 1179.913929 | AF101: 6.595376815 | AG101: 9.6
O102: 9.7 | P102: 1187.875558 | Q102: 0 | R102: 9.7 | T102: 9.7 | U102: 1187.875558 | V102: 5.533673277 | W102: 9.7 | Y102: 9.7 | Z102: 1187.875558 | AA102: 5.902584829 | AB102: 9.7 | AD102: 9.7 | AE102: 1187.875558 | AF102: 6.640407933 | AG102: 9.7
O103: 9.8 | P103: 1195.884477 | Q103: 0 | R103: 9.8 | T103: 9.8 | U103: 1195.884477 | V103: 5.571428124 | W103: 9.8 | Y103: 9.8 | Z103: 1195.884477 | AA103: 5.942856666 | AB103: 9.8 | AD103: 9.8 | AE103: 1195.884477 | AF103: 6.685713749 | AG103: 9.8
O104: 9.9 | P104: 1203.940926 | Q104: 0 | R104: 9.9 | T104: 9.9 | U104: 1203.940926 | V104: 5.609413125 | W104: 9.9 | Y104: 9.9 | Z104: 1203.940926 | AA104: 5.983374 | AB104: 9.9 | AD104: 9.9 | AE104: 1203.940926 | AF104: 6.73129575 | AG104: 9.9
O105: 10 | P105: 1212.045145 | Q105: 0 | R105: 10 | T105: 10 | U105: 1212.045145 | V105: 5.647629525 | W105: 10 | Y105: 10 | Z105: 1212.045145 | AA105: 6.02413816 | AB105: 10 | AD105: 10 | AE105: 1212.045145 | AF105: 6.77715543 | AG105: 10
O106: 10.1 | P106: 1220.197377 | Q106: 0 | R106: 10.1 | T106: 10.1 | U106: 1220.197377 | V106: 5.686078574 | W106: 10.1 | Y106: 10.1 | Z106: 1220.197377 | AA106: 6.065150479 | AB106: 10.1 | AD106: 10.1 | AE106: 1220.197377 | AF106: 6.823294288 | AG106: 10.1
O107: 10.2 | P107: 1228.397863 | Q107: 0 | R107: 10.2 | T107: 10.2 | U107: 1228.397863 | V107: 5.724761529 | W107: 10.2 | Y107: 10.2 | Z107: 1228.397863 | AA107: 6.106412298 | AB107: 10.2 | AD107: 10.2 | AE107: 1228.397863 | AF107: 6.869713835 | AG107: 10.2
O108: 10.3 | P108: 1236.646848 | Q108: 0 | R108: 10.3 | T108: 10.3 | U108: 1236.646848 | V108: 5.763679654 | W108: 10.3 | Y108: 10.3 | Z108: 1236.646848 | AA108: 6.147924964 | AB108: 10.3 | AD108: 10.3 | AE108: 1236.646848 | AF108: 6.916415585 | AG108: 10.3
O109: 10.4 | P109: 1244.944575 | Q109: 0 | R109: 10.4 | T109: 10.4 | U109: 1244.944575 | V109: 5.802834218 | W109: 10.4 | Y109: 10.4 | Z109: 1244.944575 | AA109: 6.189689832 | AB109: 10.4 | AD109: 10.4 | AE109: 1244.944575 | AF109: 6.963401061 | AG109: 10.4
B110: Anvendte formler til bestemmelse af overfladetemperatur ved dampspærre: | O110: 10.5 | P110: 1253.291291 | Q110: 0 | R110: 10.5 | T110: 10.5 | U110: 1253.291291 | V110: 5.842226496 | W110: 10.5 | Y110: 10.5 | Z110: 1253.291291 | AA110: 6.231708262 | AB110: 10.5 | AD110: 10.5 | AE110: 1253.291291 | AF110: 7.010671795 | AG110: 10.5
O111: 10.6 | P111: 1261.687243 | Q111: 0 | R111: 10.6 | T111: 10.6 | U111: 1261.687243 | V111: 5.881857769 | W111: 10.6 | Y111: 10.6 | Z111: 1261.687243 | AA111: 6.27398162 | AB111: 10.6 | AD111: 10.6 | AE111: 1261.687243 | AF111: 7.058229323 | AG111: 10.6
O112: 10.7 | P112: 1270.132678 | Q112: 0 | R112: 10.7 | T112: 10.7 | U112: 1270.132678 | V112: 5.921729326 | W112: 10.7 | Y112: 10.7 | Z112: 1270.132678 | AA112: 6.316511282 | AB112: 10.7 | AD112: 10.7 | AE112: 1270.132678 | AF112: 7.106075192 | AG112: 10.7
O113: 10.8 | P113: 1278.627844 | Q113: 0 | R113: 10.8 | T113: 10.8 | U113: 1278.627844 | V113: 5.961842462 | W113: 10.8 | Y113: 10.8 | Z113: 1278.627844 | AA113: 6.359298626 | AB113: 10.8 | AD113: 10.8 | AE113: 1278.627844 | AF113: 7.154210954 | AG113: 10.8
O114: 10.9 | P114: 1287.172991 | Q114: 0 | R114: 10.9 | T114: 10.9 | U114: 1287.172991 | V114: 6.002198475 | W114: 10.9 | Y114: 10.9 | Z114: 1287.172991 | AA114: 6.40234504 | AB114: 10.9 | AD114: 10.9 | AE114: 1287.172991 | AF114: 7.20263817 | AG114: 10.9
O115: 11 | P115: 1295.76837 | Q115: 0 | R115: 11 | T115: 11 | U115: 1295.76837 | V115: 6.042798674 | W115: 11 | Y115: 11 | Z115: 1295.76837 | AA115: 6.445651919 | AB115: 11 | AD115: 11 | AE115: 1295.76837 | AF115: 7.251358409 | AG115: 11
O116: 11.1 | P116: 1304.414233 | Q116: 0 | R116: 11.1 | T116: 11.1 | U116: 1304.414233 | V116: 6.083644372 | W116: 11.1 | Y116: 11.1 | Z116: 1304.414233 | AA116: 6.489220663 | AB116: 11.1 | AD116: 11.1 | AE116: 1304.414233 | AF116: 7.300373246 | AG116: 11.1
O117: 11.2 | P117: 1313.110833 | Q117: 0 | R117: 11.2 | T117: 11.2 | U117: 1313.110833 | V117: 6.124736888 | W117: 11.2 | Y117: 11.2 | Z117: 1313.110833 | AA117: 6.53305268 | AB117: 11.2 | AD117: 11.2 | AE117: 1313.110833 | AF117: 7.349684265 | AG117: 11.2
O118: 11.3 | P118: 1321.858422 | Q118: 0 | R118: 11.3 | T118: 11.3 | U118: 1321.858422 | V118: 6.166077548 | W118: 11.3 | Y118: 11.3 | Z118: 1321.858422 | AA118: 6.577149384 | AB118: 11.3 | AD118: 11.3 | AE118: 1321.858422 | AF118: 7.399293057 | AG118: 11.3
O119: 11.4 | P119: 1330.657256 | Q119: 0 | R119: 11.4 | T119: 11.4 | U119: 1330.657256 | V119: 6.207667685 | W119: 11.4 | Y119: 11.4 | Z119: 1330.657256 | AA119: 6.621512197 | AB119: 11.4 | AD119: 11.4 | AE119: 1330.657256 | AF119: 7.449201222 | AG119: 11.4
B120: Anvendte formler til bestemmelse af energiforbrug for kuldebroer: | O120: 11.5 | P120: 1339.507591 | Q120: 0 | R120: 11.5 | T120: 11.5 | U120: 1339.507591 | V120: 6.249508638 | W120: 11.5 | Y120: 11.5 | Z120: 1339.507591 | AA120: 6.666142548 | AB120: 11.5 | AD120: 11.5 | AE120: 1339.507591 | AF120: 7.499410366 | AG120: 11.5
O121: 11.6 | P121: 1348.409683 | Q121: 0 | R121: 11.6 | T121: 11.6 | U121: 1348.409683 | V121: 6.291601754 | W121: 11.6 | Y121: 11.6 | Z121: 1348.409683 | AA121: 6.711041871 | AB121: 11.6 | AD121: 11.6 | AE121: 1348.409683 | AF121: 7.549922104 | AG121: 11.6
O122: 11.7 | P122: 1357.36379 | Q122: 0 | R122: 11.7 | T122: 11.7 | U122: 1357.36379 | V122: 6.333948383 | W122: 11.7 | Y122: 11.7 | Z122: 1357.36379 | AA122: 6.756211608 | AB122: 11.7 | AD122: 11.7 | AE122: 1357.36379 | AF122: 7.600738059 | AG122: 11.7
O123: 11.8 | P123: 1366.370172 | Q123: 0 | R123: 11.8 | T123: 11.8 | U123: 1366.370172 | V123: 6.376549885 | W123: 11.8 | Y123: 11.8 | Z123: 1366.370172 | AA123: 6.801653211 | AB123: 11.8 | AD123: 11.8 | AE123: 1366.370172 | AF123: 7.651859862 | AG123: 11.8
O124: 11.9 | P124: 1375.429087 | Q124: 0 | R124: 11.9 | T124: 11.9 | U124: 1375.429087 | V124: 6.419407626 | W124: 11.9 | Y124: 11.9 | Z124: 1375.429087 | AA124: 6.847368134 | AB124: 11.9 | AD124: 11.9 | AE124: 1375.429087 | AF124: 7.703289151 | AG124: 11.9
O125: 12 | P125: 1384.540798 | Q125: 0 | R125: 12 | T125: 12 | U125: 1384.540798 | V125: 6.462522977 | W125: 12 | Y125: 12 | Z125: 1384.540798 | AA125: 6.893357842 | AB125: 12 | AD125: 12 | AE125: 1384.540798 | AF125: 7.755027573 | AG125: 12
O126: 12.1 | P126: 1393.705565 | Q126: 0 | R126: 12.1 | T126: 12.1 | U126: 1393.705565 | V126: 6.505897318 | W126: 12.1 | Y126: 12.1 | Z126: 1393.705565 | AA126: 6.939623806 | AB126: 12.1 | AD126: 12.1 | AE126: 1393.705565 | AF126: 7.807076781 | AG126: 12.1
O127: 12.2 | P127: 1402.923652 | Q127: 0 | R127: 12.2 | T127: 12.2 | U127: 1402.923652 | V127: 6.549532034 | W127: 12.2 | Y127: 12.2 | Z127: 1402.923652 | AA127: 6.986167503 | AB127: 12.2 | AD127: 12.2 | AE127: 1402.923652 | AF127: 7.859438441 | AG127: 12.2
O128: 12.3 | P128: 1412.195324 | Q128: 0 | R128: 12.3 | T128: 12.3 | U128: 1412.195324 | V128: 6.593428517 | W128: 12.3 | Y128: 12.3 | Z128: 1412.195324 | AA128: 7.032990418 | AB128: 12.3 | AD128: 12.3 | AE128: 1412.195324 | AF128: 7.912114221 | AG128: 12.3
O129: 12.4 | P129: 1421.520844 | Q129: 0 | R129: 12.4 | T129: 12.4 | U129: 1421.520844 | V129: 6.637588167 | W129: 12.4 | Y129: 12.4 | Z129: 1421.520844 | AA129: 7.080094045 | AB129: 12.4 | AD129: 12.4 | AE129: 1421.520844 | AF129: 7.965105801 | AG129: 12.4
O130: 12.5 | P130: 1430.900481 | Q130: 0 | R130: 12.5 | T130: 12.5 | U130: 1430.900481 | V130: 6.68201239 | W130: 12.5 | Y130: 12.5 | Z130: 1430.900481 | AA130: 7.127479883 | AB130: 12.5 | AD130: 12.5 | AE130: 1430.900481 | AF130: 8.018414868 | AG130: 12.5
O131: 12.6 | P131: 1440.3345 | Q131: 0 | R131: 12.6 | T131: 12.6 | U131: 1440.3345 | V131: 6.726702599 | W131: 12.6 | Y131: 12.6 | Z131: 1440.3345 | AA131: 7.175149439 | AB131: 12.6 | AD131: 12.6 | AE131: 1440.3345 | AF131: 8.072043119 | AG131: 12.6
O132: 12.7 | P132: 1449.82317 | Q132: 0 | R132: 12.7 | T132: 12.7 | U132: 1449.82317 | V132: 6.771660213 | W132: 12.7 | Y132: 12.7 | Z132: 1449.82317 | AA132: 7.223104228 | AB132: 12.7 | AD132: 12.7 | AE132: 1449.82317 | AF132: 8.125992256 | AG132: 12.7
O133: 12.8 | P133: 1459.36676 | Q133: =($D$20%*0.62198*P133/($D$13-P133))*1000 -> 0 | R133: 12.8 | T133: 12.8 | U133: 1459.36676 | V133: 6.81688666 | W133: 12.8 | Y133: 12.8 | Z133: 1459.36676 | AA133: 7.271345771 | AB133: 12.8 | AD133: 12.8 | AE133: 1459.36676 | AF133: 8.180263992 | AG133: 12.8
O134: 12.9 | P134: =EXP(77.345+0.0057*(O134+273)-7235/(O134+273))/(O134+273)^8.2 -> 1468.965541 | Q134: 0 | R134: =O134 -> 12.9 | T134: 12.9 | U134: =EXP(77.345+0.0057*(T134+273)-7235/(T134+273))/(T134+273)^8.2 -> 1468.965541 | V134: =($I$3%*0.62198*U134/($D$13-U134))*1000 -> 6.862383373 | W134: =T134 -> 12.9 | Y134: 12.9 | Z134: =EXP(77.345+0.0057*(Y134+273)-7235/(Y134+273))/(Y134+273)^8.2 -> 1468.965541 | AA134: =($I$4%*0.62198*Z134/($D$13-Z134))*1000 -> 7.319875598 | AB134: =Y134 -> 12.9 | AD134: 12.9 | AE134: =EXP(77.345+0.0057*(AD134+273)-7235/(AD134+273))/(AD134+273)^8.2 -> 1468.965541 | AF134: =($I$5%*0.62198*AE134/($D$13-AE134))*1000 -> 8.234860048 | AG134: =AD134 -> 12.9
O135: 13 | P135: 1478.619785 | Q135: 0 | R135: 13 | T135: 13 | U135: 1478.619785 | V135: 6.908151793 | W135: 13 | Y135: 13 | Z135: 1478.619785 | AA135: 7.368695246 | AB135: 13 | AD135: 13 | AE135: 1478.619785 | AF135: 8.289782152 | AG135: 13
O136: 13.1 | P136: 1488.329764 | Q136: 0 | R136: 13.1 | T136: 13.1 | U136: 1488.329764 | V136: 6.954193368 | W136: 13.1 | Y136: 13.1 | Z136: 1488.329764 | AA136: 7.417806259 | AB136: 13.1 | AD136: 13.1 | AE136: 1488.329764 | AF136: 8.345032041 | AG136: 13.1
O137: 13.2 | P137: 1498.095752 | Q137: 0 | R137: 13.2 | T137: 13.2 | U137: 1498.095752 | V137: 7.000509552 | W137: 13.2 | Y137: 13.2 | Z137: 1498.095752 | AA137: 7.467210189 | AB137: 13.2 | AD137: 13.2 | AE137: 1498.095752 | AF137: 8.400611463 | AG137: 13.2
O138: 13.3 | P138: 1507.918023 | Q138: 0 | R138: 13.3 | T138: 13.3 | U138: 1507.918023 | V138: 7.047101809 | W138: 13.3 | Y138: 13.3 | Z138: 1507.918023 | AA138: 7.516908596 | AB138: 13.3 | AD138: 13.3 | AE138: 1507.918023 | AF138: 8.45652217 | AG138: 13.3
O139: 13.4 | P139: 1517.796854 | Q139: 0 | R139: 13.4 | T139: 13.4 | U139: 1517.796854 | V139: 7.093971606 | W139: 13.4 | Y139: 13.4 | Z139: 1517.796854 | AA139: 7.566903047 | AB139: 13.4 | AD139: 13.4 | AE139: 1517.796854 | AF139: 8.512765927 | AG139: 13.4
O140: 13.5 | P140: 1527.73252 | Q140: 0 | R140: 13.5 | T140: 13.5 | U140: 1527.73252 | V140: 7.141120421 | W140: 13.5 | Y140: 13.5 | Z140: 1527.73252 | AA140: 7.617195116 | AB140: 13.5 | AD140: 13.5 | AE140: 1527.73252 | AF140: 8.569344505 | AG140: 13.5
O141: 13.6 | P141: 1537.725302 | Q141: 0 | R141: 13.6 | T141: 13.6 | U141: 1537.725302 | V141: 7.188549737 | W141: 13.6 | Y141: 13.6 | Z141: 1537.725302 | AA141: 7.667786387 | AB141: 13.6 | AD141: 13.6 | AE141: 1537.725302 | AF141: 8.626259685 | AG141: 13.6
O142: 13.7 | P142: 1547.775476 | Q142: 0 | R142: 13.7 | T142: 13.7 | U142: 1547.775476 | V142: 7.236261046 | W142: 13.7 | Y142: 13.7 | Z142: 1547.775476 | AA142: 7.718678449 | AB142: 13.7 | AD142: 13.7 | AE142: 1547.775476 | AF142: 8.683513255 | AG142: 13.7
O143: 13.8 | P143: 1557.883325 | Q143: 0 | R143: 13.8 | T143: 13.8 | U143: 1557.883325 | V143: 7.284255845 | W143: 13.8 | Y143: 13.8 | Z143: 1557.883325 | AA143: 7.769872901 | AB143: 13.8 | AD143: 13.8 | AE143: 1557.883325 | AF143: 8.741107014 | AG143: 13.8
O144: 13.9 | P144: 1568.049128 | Q144: 0 | R144: 13.9 | T144: 13.9 | U144: 1568.049128 | V144: 7.332535639 | W144: 13.9 | Y144: 13.9 | Z144: 1568.049128 | AA144: 7.821371349 | AB144: 13.9 | AD144: 13.9 | AE144: 1568.049128 | AF144: 8.799042767 | AG144: 13.9
O145: 14 | P145: 1578.273169 | Q145: 0 | R145: 14 | T145: 14 | U145: 1578.273169 | V145: 7.381101943 | W145: 14 | Y145: 14 | Z145: 1578.273169 | AA145: 7.873175406 | AB145: 14 | AD145: 14 | AE145: 1578.273169 | AF145: 8.857322332 | AG145: 14
O146: 14.1 | P146: 1588.555731 | Q146: 0 | R146: 14.1 | T146: 14.1 | U146: 1588.555731 | V146: 7.429956276 | W146: 14.1 | Y146: 14.1 | Z146: 1588.555731 | AA146: 7.925286695 | AB146: 14.1 | AD146: 14.1 | AE146: 1588.555731 | AF146: 8.915947532 | AG146: 14.1
O147: 14.2 | P147: 1598.897098 | Q147: 0 | R147: 14.2 | T147: 14.2 | U147: 1598.897098 | V147: 7.479100167 | W147: 14.2 | Y147: 14.2 | Z147: 1598.897098 | AA147: 7.977706845 | AB147: 14.2 | AD147: 14.2 | AE147: 1598.897098 | AF147: 8.9749202 | AG147: 14.2
O148: 14.3 | P148: 1609.297557 | Q148: 0 | R148: 14.3 | T148: 14.3 | U148: 1609.297557 | V148: 7.52853515 | W148: 14.3 | Y148: 14.3 | Z148: 1609.297557 | AA148: 8.030437493 | AB148: 14.3 | AD148: 14.3 | AE148: 1609.297557 | AF148: 9.03424218 | AG148: 14.3
O149: 14.4 | P149: 1619.757394 | Q149: 0 | R149: 14.4 | T149: 14.4 | U149: 1619.757394 | V149: 7.578262768 | W149: 14.4 | Y149: 14.4 | Z149: 1619.757394 | AA149: 8.083480286 | AB149: 14.4 | AD149: 14.4 | AE149: 1619.757394 | AF149: 9.093915322 | AG149: 14.4
O150: 14.5 | P150: 1630.276897 | Q150: 0 | R150: 14.5 | T150: 14.5 | U150: 1630.276897 | V150: 7.628284573 | W150: 14.5 | Y150: 14.5 | Z150: 1630.276897 | AA150: 8.136836878 | AB150: 14.5 | AD150: 14.5 | AE150: 1630.276897 | AF150: 9.153941487 | AG150: 14.5
O151: 14.6 | P151: 1640.856355 | Q151: 0 | R151: 14.6 | T151: 14.6 | U151: 1640.856355 | V151: 7.678602121 | W151: 14.6 | Y151: 14.6 | Z151: 1640.856355 | AA151: 8.190508929 | AB151: 14.6 | AD151: 14.6 | AE151: 1640.856355 | AF151: 9.214322546 | AG151: 14.6
O152: 14.7 | P152: 1651.496059 | Q152: 0 | R152: 14.7 | T152: 14.7 | U152: 1651.496059 | V152: 7.72921698 | W152: 14.7 | Y152: 14.7 | Z152: 1651.496059 | AA152: 8.244498112 | AB152: 14.7 | AD152: 14.7 | AE152: 1651.496059 | AF152: 9.275060376 | AG152: 14.7
O153: 14.8 | P153: 1662.1963 | Q153: 0 | R153: 14.8 | T153: 14.8 | U153: 1662.1963 | V153: 7.780130721 | W153: 14.8 | Y153: 14.8 | Z153: 1662.1963 | AA153: 8.298806103 | AB153: 14.8 | AD153: 14.8 | AE153: 1662.1963 | AF153: 9.336156866 | AG153: 14.8
O154: 14.9 | P154: 1672.95737 | Q154: 0 | R154: 14.9 | T154: 14.9 | U154: 1672.95737 | V154: 7.831344928 | W154: 14.9 | Y154: 14.9 | Z154: 1672.95737 | AA154: 8.353434589 | AB154: 14.9 | AD154: 14.9 | AE154: 1672.95737 | AF154: 9.397613913 | AG154: 14.9
O155: 15 | P155: 1683.779563 | Q155: 0 | R155: 15 | T155: 15 | U155: 1683.779563 | V155: 7.882861187 | W155: 15 | Y155: 15 | Z155: 1683.779563 | AA155: 8.408385266 | AB155: 15 | AD155: 15 | AE155: 1683.779563 | AF155: 9.459433424 | AG155: 15
O156: 15.1 | P156: 1694.663173 | Q156: 0 | R156: 15.1 | T156: 15.1 | U156: 1694.663173 | V156: 7.934681097 | W156: 15.1 | Y156: 15.1 | Z156: 1694.663173 | AA156: 8.463659836 | AB156: 15.1 | AD156: 15.1 | AE156: 1694.663173 | AF156: 9.521617316 | AG156: 15.1
O157: 15.2 | P157: 1705.608497 | Q157: 0 | R157: 15.2 | T157: 15.2 | U157: 1705.608497 | V157: 7.986806261 | W157: 15.2 | Y157: 15.2 | Z157: 1705.608497 | AA157: 8.519260012 | AB157: 15.2 | AD157: 15.2 | AE157: 1705.608497 | AF157: 9.584167513 | AG157: 15.2
O158: 15.3 | P158: 1716.615832 | Q158: 0 | R158: 15.3 | T158: 15.3 | U158: 1716.615832 | V158: 8.039238293 | W158: 15.3 | Y158: 15.3 | Z158: 1716.615832 | AA158: 8.575187512 | AB158: 15.3 | AD158: 15.3 | AE158: 1716.615832 | AF158: 9.647085951 | AG158: 15.3
O159: 15.4 | P159: 1727.685475 | Q159: 0 | R159: 15.4 | T159: 15.4 | U159: 1727.685475 | V159: 8.091978812 | W159: 15.4 | Y159: 15.4 | Z159: 1727.685475 | AA159: 8.631444066 | AB159: 15.4 | AD159: 15.4 | AE159: 1727.685475 | AF159: 9.710374575 | AG159: 15.4
O160: 15.5 | P160: 1738.817727 | Q160: 0 | R160: 15.5 | T160: 15.5 | U160: 1738.817727 | V160: 8.145029448 | W160: 15.5 | Y160: 15.5 | Z160: 1738.817727 | AA160: 8.688031411 | AB160: 15.5 | AD160: 15.5 | AE160: 1738.817727 | AF160: 9.774035338 | AG160: 15.5
O161: 15.6 | P161: 1750.012887 | Q161: 0 | R161: 15.6 | T161: 15.6 | U161: 1750.012887 | V161: 8.198391836 | W161: 15.6 | Y161: 15.6 | Z161: 1750.012887 | AA161: 8.744951292 | AB161: 15.6 | AD161: 15.6 | AE161: 1750.012887 | AF161: 9.838070204 | AG161: 15.6
O162: 15.7 | P162: 1761.271257 | Q162: 0 | R162: 15.7 | T162: 15.7 | U162: 1761.271257 | V162: 8.252067622 | W162: 15.7 | Y162: 15.7 | Z162: 1761.271257 | AA162: 8.802205463 | AB162: 15.7 | AD162: 15.7 | AE162: 1761.271257 | AF162: 9.902481146 | AG162: 15.7
O163: 15.8 | P163: 1772.59314 | Q163: 0 | R163: 15.8 | T163: 15.8 | U163: 1772.59314 | V163: 8.306058457 | W163: 15.8 | Y163: 15.8 | Z163: 1772.59314 | AA163: 8.859795687 | AB163: 15.8 | AD163: 15.8 | AE163: 1772.59314 | AF163: 9.967270148 | AG163: 15.8
O164: 15.9 | P164: 1783.97884 | Q164: 0 | R164: 15.9 | T164: 15.9 | U164: 1783.97884 | V164: 8.360366003 | W164: 15.9 | Y164: 15.9 | Z164: 1783.97884 | AA164: 8.917723736 | AB164: 15.9 | AD164: 15.9 | AE164: 1783.97884 | AF164: 10.0324392 | AG164: 15.9
O165: 16 | P165: 1795.428662 | Q165: 0 | R165: 16 | T165: 16 | U165: 1795.428662 | V165: 8.414991928 | W165: 16 | Y165: 16 | Z165: 1795.428662 | AA165: 8.97599139 | AB165: 16 | AD165: 16 | AE165: 1795.428662 | AF165: 10.09799031 | AG165: 16
O166: 16.1 | P166: 1806.942912 | Q166: 0 | R166: 16.1 | T166: 16.1 | U166: 1806.942912 | V166: 8.46993791 | W166: 16.1 | Y166: 16.1 | Z166: 1806.942912 | AA166: 9.034600437 | AB166: 16.1 | AD166: 16.1 | AE166: 1806.942912 | AF166: 10.16392549 | AG166: 16.1
O167: 16.2 | P167: 1818.521898 | Q167: 0 | R167: 16.2 | T167: 16.2 | U167: 1818.521898 | V167: 8.525205634 | W167: 16.2 | Y167: 16.2 | Z167: 1818.521898 | AA167: 9.093552677 | AB167: 16.2 | AD167: 16.2 | AE167: 1818.521898 | AF167: 10.23024676 | AG167: 16.2
B168: Anvendte formler til bestemmelse af energiforbrug for utætheder: | O168: 16.3 | P168: 1830.165929 | Q168: 0 | R168: 16.3 | T168: 16.3 | U168: 1830.165929 | V168: 8.580796795 | W168: 16.3 | Y168: 16.3 | Z168: 1830.165929 | AA168: 9.152849914 | AB168: 16.3 | AD168: 16.3 | AE168: 1830.165929 | AF168: 10.29695615 | AG168: 16.3
O169: 16.4 | P169: 1841.875313 | Q169: 0 | R169: 16.4 | T169: 16.4 | U169: 1841.875313 | V169: 8.636713093 | W169: 16.4 | Y169: 16.4 | Z169: 1841.875313 | AA169: 9.212493966 | AB169: 16.4 | AD169: 16.4 | AE169: 1841.875313 | AF169: 10.36405571 | AG169: 16.4
O170: 16.5 | P170: 1853.650363 | Q170: 0 | R170: 16.5 | T170: 16.5 | U170: 1853.650363 | V170: 8.69295624 | W170: 16.5 | Y170: 16.5 | Z170: 1853.650363 | AA170: 9.272486656 | AB170: 16.5 | AD170: 16.5 | AE170: 1853.650363 | AF170: 10.43154749 | AG170: 16.5
O171: 16.6 | P171: 1865.49139 | Q171: 0 | R171: 16.6 | T171: 16.6 | U171: 1865.49139 | V171: 8.749527955 | W171: 16.6 | Y171: 16.6 | Z171: 1865.49139 | AA171: 9.332829819 | AB171: 16.6 | AD171: 16.6 | AE171: 1865.49139 | AF171: 10.49943355 | AG171: 16.6
O172: 16.7 | P172: 1877.398707 | Q172: 0 | R172: 16.7 | T172: 16.7 | U172: 1877.398707 | V172: 8.806429965 | W172: 16.7 | Y172: 16.7 | Z172: 1877.398707 | AA172: 9.393525296 | AB172: 16.7 | AD172: 16.7 | AE172: 1877.398707 | AF172: 10.56771596 | AG172: 16.7
O173: 16.8 | P173: 1889.37263 | Q173: 0 | R173: 16.8 | T173: 16.8 | U173: 1889.37263 | V173: 8.863664007 | W173: 16.8 | Y173: 16.8 | Z173: 1889.37263 | AA173: 9.454574941 | AB173: 16.8 | AD173: 16.8 | AE173: 1889.37263 | AF173: 10.63639681 | AG173: 16.8
O174: 16.9 | P174: 1901.413474 | Q174: 0 | R174: 16.9 | T174: 16.9 | U174: 1901.413474 | V174: 8.921231825 | W174: 16.9 | Y174: 16.9 | Z174: 1901.413474 | AA174: 9.515980613 | AB174: 16.9 | AD174: 16.9 | AE174: 1901.413474 | AF174: 10.70547819 | AG174: 16.9
O175: 17 | P175: 1913.521555 | Q175: 0 | R175: 17 | T175: 17 | U175: 1913.521555 | V175: 8.979135172 | W175: 17 | Y175: 17 | Z175: 1913.521555 | AA175: 9.577744183 | AB175: 17 | AD175: 17 | AE175: 1913.521555 | AF175: 10.77496221 | AG175: 17
O176: 17.1 | P176: 1925.697192 | Q176: 0 | R176: 17.1 | T176: 17.1 | U176: 1925.697192 | V176: 9.03737581 | W176: 17.1 | Y176: 17.1 | Z176: 1925.697192 | AA176: 9.639867531 | AB176: 17.1 | AD176: 17.1 | AE176: 1925.697192 | AF176: 10.84485097 | AG176: 17.1
O177: 17.2 | P177: 1937.940705 | Q177: 0 | R177: 17.2 | T177: 17.2 | U177: 1937.940705 | V177: 9.095955511 | W177: 17.2 | Y177: 17.2 | Z177: 1937.940705 | AA177: 9.702352545 | AB177: 17.2 | AD177: 17.2 | AE177: 1937.940705 | AF177: 10.91514661 | AG177: 17.2
O178: 17.3 | P178: 1950.252413 | Q178: 0 | R178: 17.3 | T178: 17.3 | U178: 1950.252413 | V178: 9.154876053 | W178: 17.3 | Y178: 17.3 | Z178: 1950.252413 | AA178: 9.765201123 | AB178: 17.3 | AD178: 17.3 | AE178: 1950.252413 | AF178: 10.98585126 | AG178: 17.3
O179: 17.4 | P179: 1962.632639 | Q179: 0 | R179: 17.4 | T179: 17.4 | U179: 1962.632639 | V179: 9.214139225 | W179: 17.4 | Y179: 17.4 | Z179: 1962.632639 | AA179: 9.828415173 | AB179: 17.4 | AD179: 17.4 | AE179: 1962.632639 | AF179: 11.05696707 | AG179: 17.4
O180: 17.5 | P180: 1975.081705 | Q180: 0 | R180: 17.5 | T180: 17.5 | U180: 1975.081705 | V180: 9.273746824 | W180: 17.5 | Y180: 17.5 | Z180: 1975.081705 | AA180: 9.891996612 | AB180: 17.5 | AD180: 17.5 | AE180: 1975.081705 | AF180: 11.12849619 | AG180: 17.5
O181: 17.6 | P181: 1987.599936 | Q181: 0 | R181: 17.6 | T181: 17.6 | U181: 1987.599936 | V181: 9.333700656 | W181: 17.6 | Y181: 17.6 | Z181: 1987.599936 | AA181: 9.955947367 | AB181: 17.6 | AD181: 17.6 | AE181: 1987.599936 | AF181: 11.20044079 | AG181: 17.6
O182: 17.7 | P182: 2000.187657 | Q182: 0 | R182: 17.7 | T182: 17.7 | U182: 2000.187657 | V182: 9.394002537 | W182: 17.7 | Y182: 17.7 | Z182: 2000.187657 | AA182: 10.02026937 | AB182: 17.7 | AD182: 17.7 | AE182: 2000.187657 | AF182: 11.27280304 | AG182: 17.7
O183: 17.8 | P183: 2012.845194 | Q183: 0 | R183: 17.8 | T183: 17.8 | U183: 2012.845194 | V183: 9.45465429 | W183: 17.8 | Y183: 17.8 | Z183: 2012.845194 | AA183: 10.08496458 | AB183: 17.8 | AD183: 17.8 | AE183: 2012.845194 | AF183: 11.34558515 | AG183: 17.8
O184: 17.9 | P184: 2025.572876 | Q184: 0 | R184: 17.9 | T184: 17.9 | U184: 2025.572876 | V184: 9.515657749 | W184: 17.9 | Y184: 17.9 | Z184: 2025.572876 | AA184: 10.15003493 | AB184: 17.9 | AD184: 17.9 | AE184: 2025.572876 | AF184: 11.4187893 | AG184: 17.9
O185: 18 | P185: 2038.371031 | Q185: 0 | R185: 18 | T185: 18 | U185: 2038.371031 | V185: 9.577014755 | W185: 18 | Y185: 18 | Z185: 2038.371031 | AA185: 10.21548241 | AB185: 18 | AD185: 18 | AE185: 2038.371031 | AF185: 11.49241771 | AG185: 18
O186: 18.1 | P186: 2051.239991 | Q186: 0 | R186: 18.1 | T186: 18.1 | U186: 2051.239991 | V186: 9.638727161 | W186: 18.1 | Y186: 18.1 | Z186: 2051.239991 | AA186: 10.28130897 | AB186: 18.1 | AD186: 18.1 | AE186: 2051.239991 | AF186: 11.56647259 | AG186: 18.1
O187: 18.2 | P187: 2064.180085 | Q187: 0 | R187: 18.2 | T187: 18.2 | U187: 2064.180085 | V187: 9.700796827 | W187: 18.2 | Y187: 18.2 | Z187: 2064.180085 | AA187: 10.34751662 | AB187: 18.2 | AD187: 18.2 | AE187: 2064.180085 | AF187: 11.64095619 | AG187: 18.2
O188: 18.3 | P188: 2077.191647 | Q188: 0 | R188: 18.3 | T188: 18.3 | U188: 2077.191647 | V188: 9.763225623 | W188: 18.3 | Y188: 18.3 | Z188: 2077.191647 | AA188: 10.41410733 | AB188: 18.3 | AD188: 18.3 | AE188: 2077.191647 | AF188: 11.71587075 | AG188: 18.3
O189: 18.4 | P189: 2090.275011 | Q189: 0 | R189: 18.4 | T189: 18.4 | U189: 2090.275011 | V189: 9.826015428 | W189: 18.4 | Y189: 18.4 | Z189: 2090.275011 | AA189: 10.48108312 | AB189: 18.4 | AD189: 18.4 | AE189: 2090.275011 | AF189: 11.79121851 | AG189: 18.4
O190: 18.5 | P190: 2103.430513 | Q190: 0 | R190: 18.5 | T190: 18.5 | U190: 2103.430513 | V190: 9.889168131 | W190: 18.5 | Y190: 18.5 | Z190: 2103.430513 | AA190: 10.54844601 | AB190: 18.5 | AD190: 18.5 | AE190: 2103.430513 | AF190: 11.86700176 | AG190: 18.5
O191: 18.6 | P191: 2116.658488 | Q191: 0 | R191: 18.6 | T191: 18.6 | U191: 2116.658488 | V191: 9.952685629 | W191: 18.6 | Y191: 18.6 | Z191: 2116.658488 | AA191: 10.616198 | AB191: 18.6 | AD191: 18.6 | AE191: 2116.658488 | AF191: 11.94322276 | AG191: 18.6
O192: 18.7 | P192: 2129.959275 | Q192: 0 | R192: 18.7 | T192: 18.7 | U192: 2129.959275 | V192: 10.01656983 | W192: 18.7 | Y192: 18.7 | Z192: 2129.959275 | AA192: 10.68434115 | AB192: 18.7 | AD192: 18.7 | AE192: 2129.959275 | AF192: 12.0198838 | AG192: 18.7
O193: 18.8 | P193: 2143.333212 | Q193: 0 | R193: 18.8 | T193: 18.8 | U193: 2143.333212 | V193: 10.08082265 | W193: 18.8 | Y193: 18.8 | Z193: 2143.333212 | AA193: 10.7528775 | AB193: 18.8 | AD193: 18.8 | AE193: 2143.333212 | AF193: 12.09698718 | AG193: 18.8
O194: 18.9 | P194: 2156.78064 | Q194: 0 | R194: 18.9 | T194: 18.9 | U194: 2156.78064 | V194: 10.14544602 | W194: 18.9 | Y194: 18.9 | Z194: 2156.78064 | AA194: 10.82180909 | AB194: 18.9 | AD194: 18.9 | AE194: 2156.78064 | AF194: 12.17453523 | AG194: 18.9
O195: 19 | P195: 2170.3019 | Q195: 0 | R195: 19 | T195: 19 | U195: 2170.3019 | V195: 10.21044188 | W195: 19 | Y195: 19 | Z195: 2170.3019 | AA195: 10.891138 | AB195: 19 | AD195: 19 | AE195: 2170.3019 | AF195: 12.25253025 | AG195: 19
O196: 19.1 | P196: 2183.897335 | Q196: 0 | R196: 19.1 | T196: 19.1 | U196: 2183.897335 | V196: 10.27581216 | W196: 19.1 | Y196: 19.1 | Z196: 2183.897335 | AA196: 10.9608663 | AB196: 19.1 | AD196: 19.1 | AE196: 2183.897335 | AF196: 12.33097459 | AG196: 19.1
O197: 19.2 | P197: 2197.567288 | Q197: =($D$20%*0.62198*P197/($D$13-P197))*1000 -> 0 | R197: 19.2 | T197: 19.2 | U197: 2197.567288 | V197: 10.34155882 | W197: 19.2 | Y197: 19.2 | Z197: 2197.567288 | AA197: 11.03099608 | AB197: 19.2 | AD197: 19.2 | AE197: 2197.567288 | AF197: 12.40987059 | AG197: 19.2
O198: 19.3 | P198: =EXP(77.345+0.0057*(O198+273)-7235/(O198+273))/(O198+273)^8.2 -> 2211.312106 | Q198: 0 | R198: =O198 -> 19.3 | T198: 19.3 | U198: =EXP(77.345+0.0057*(T198+273)-7235/(T198+273))/(T198+273)^8.2 -> 2211.312106 | V198: =($I$3%*0.62198*U198/($D$13-U198))*1000 -> 10.40768384 | W198: =T198 -> 19.3 | Y198: 19.3 | Z198: =EXP(77.345+0.0057*(Y198+273)-7235/(Y198+273))/(Y198+273)^8.2 -> 2211.312106 | AA198: =($I$4%*0.62198*Z198/($D$13-Z198))*1000 -> 11.10152943 | AB198: =Y198 -> 19.3 | AD198: 19.3 | AE198: =EXP(77.345+0.0057*(AD198+273)-7235/(AD198+273))/(AD198+273)^8.2 -> 2211.312106 | AF198: =($I$5%*0.62198*AE198/($D$13-AE198))*1000 -> 12.48922061 | AG198: =AD198 -> 19.3
O199: 19.4 | P199: 2225.132135 | Q199: 0 | R199: 19.4 | T199: 19.4 | U199: 2225.132135 | V199: 10.47418918 | W199: 19.4 | Y199: 19.4 | Z199: 2225.132135 | AA199: 11.17246846 | AB199: 19.4 | AD199: 19.4 | AE199: 2225.132135 | AF199: 12.56902702 | AG199: 19.4
O200: 19.5 | P200: 2239.027723 | Q200: 0 | R200: 19.5 | T200: 19.5 | U200: 2239.027723 | V200: 10.54107684 | W200: 19.5 | Y200: 19.5 | Z200: 2239.027723 | AA200: 11.24381529 | AB200: 19.5 | AD200: 19.5 | AE200: 2239.027723 | AF200: 12.6492922 | AG200: 19.5
O201: 19.6 | P201: 2252.999218 | Q201: 0 | R201: 19.6 | T201: 19.6 | U201: 2252.999218 | V201: 10.6083488 | W201: 19.6 | Y201: 19.6 | Z201: 2252.999218 | AA201: 11.31557205 | AB201: 19.6 | AD201: 19.6 | AE201: 2252.999218 | AF201: 12.73001855 | AG201: 19.6
... 304 more rows
